Body,Body Name,Date,TransNo,Amount � (Excl VAT),Supplier name,Description,Expense Area,Expense Type,Expense Code,
http://opendatacommunities.org/id/london-borough-council/sutton,London Borough of Sutton,17/07/2023,10012742,163.00, IKEA LTD 144 CROYDON M,CHILDRENS CENTRE SERVICES EXPENSES,Health and Wellbeing,Miscellaneous Expenses,A49000,
http://opendatacommunities.org/id/london-borough-council/sutton,London Borough of Sutton,06/07/2023,10012742,18.72, AMZNMKTPLACE,CHILDRENS CENTRE SERVICES EXPENSES,Health and Wellbeing,Miscellaneous Expenses,A49000,
http://opendatacommunities.org/id/london-borough-council/sutton,London Borough of Sutton,28/06/2023,10012742,31.71, AMZNMKTPLACE AMAZON.CO,CHILDRENS CENTRE SERVICES EXPENSES,Health and Wellbeing,Miscellaneous Expenses,A49000,
http://opendatacommunities.org/id/london-borough-council/sutton,London Borough of Sutton,28/06/2023,10012742,46.99, UK.VEVOR.COM,CHILDRENS CENTRE SERVICES EXPENSES,Health and Wellbeing,Miscellaneous Expenses,A49000,
http://opendatacommunities.org/id/london-borough-council/sutton,London Borough of Sutton,25/07/2022,10012742,17.61, AMAZON,TOYS AND EQUIPMENT,Health and Wellbeing,Equipment And Materials Purchase,A40000,
http://opendatacommunities.org/id/london-borough-council/sutton,London Borough of Sutton,22/07/2023,10012742,8.32, TWINKL,TWINKL SUBSCRIPTION,Health and Wellbeing,Equipment And Materials Purchase,A40000,
http://opendatacommunities.org/id/london-borough-council/sutton,London Borough of Sutton,29/06/2023,10012742,33.25, TEMU.COM,TOYS AND EQUIPMENT,Health and Wellbeing,Equipment And Materials Purchase,A40000,
http://opendatacommunities.org/id/london-borough-council/sutton,London Borough of Sutton,27/06/2023,10012742,14.36, THE RANGE,TOYS AND EQUIPMENT,Health and Wellbeing,Equipment And Materials Purchase,A40000,
http://opendatacommunities.org/id/london-borough-council/sutton,London Borough of Sutton,20/07/2023,10012742,6.66, AMZNMKTPLACE AMAZON.CO,TOYS AND EQUIPMENT,Health and Wellbeing,Equipment And Materials Purchase,A40000,
http://opendatacommunities.org/id/london-borough-council/sutton,London Borough of Sutton,17/07/2023,10012742,-8.92, AMZ JUST B2B,TOYS AND EQUIPMENT,Health and Wellbeing,Equipment And Materials Purchase,A40000,
http://opendatacommunities.org/id/london-borough-council/sutton,London Borough of Sutton,08/07/2023,10012742,23.25, GAME RETAIL,TOYS AND EQUIPMENT,Health and Wellbeing,Equipment And Materials Purchase,A40000,
http://opendatacommunities.org/id/london-borough-council/sutton,London Borough of Sutton,30/06/2023,10012742,10.72, EBAY O 14-10234-85260,TOYS AND EQUIPMENT,Health and Wellbeing,Equipment And Materials Purchase,A40000,
http://opendatacommunities.org/id/london-borough-council/sutton,London Borough of Sutton,08/07/2023,10012742,6.67, B&M 502 - THURROCK,TOYS AND EQUIPMENT,Health and Wellbeing,Equipment And Materials Purchase,A40000,
http://opendatacommunities.org/id/london-borough-council/sutton,London Borough of Sutton,08/07/2023,10012742,9.17, POUNDLAND LTD - 1507,TOYS AND EQUIPMENT,Health and Wellbeing,Equipment And Materials Purchase,A40000,
http://opendatacommunities.org/id/london-borough-council/sutton,London Borough of Sutton,07/07/2023,10012742,15.15, AMZNMKTPLACE,TOYS AND EQUIPMENT,Health and Wellbeing,Equipment And Materials Purchase,A40000,
http://opendatacommunities.org/id/london-borough-council/sutton,London Borough of Sutton,03/07/2023,10012742,59.02, TESCO STORES 5999,GROCERIES,Health and Wellbeing,Provisions,A41006,
http://opendatacommunities.org/id/london-borough-council/sutton,London Borough of Sutton,14/07/2023,10012742,48.34, SAINSBURYS.CO.UK,GROCERIES,Health and Wellbeing,Provisions,A41006,
http://opendatacommunities.org/id/london-borough-council/sutton,London Borough of Sutton,13/07/2023,10012742,7.60, TESCO STORES 6030,GROCERIES,Health and Wellbeing,Provisions,A41006,
http://opendatacommunities.org/id/london-borough-council/sutton,London Borough of Sutton,17/07/2023,10012742,59.12, TESCO STORES 5999,GROCERIES,Health and Wellbeing,Provisions,A41006,
http://opendatacommunities.org/id/london-borough-council/sutton,London Borough of Sutton,21/07/2023,10012742,22.02, ASDA SUPERSTORE,GROCERIES,Health and Wellbeing,Provisions,A41006,
http://opendatacommunities.org/id/london-borough-council/sutton,London Borough of Sutton,24/07/2023,10012742,89.69, TESCO STORES 5999,GROCERIES,Health and Wellbeing,Provisions,A41006,
http://opendatacommunities.org/id/london-borough-council/sutton,London Borough of Sutton,30/06/2023,10012742,94.84, SAINSBURYS.CO.UK,GROCERIES,Health and Wellbeing,Provisions,A41006,
http://opendatacommunities.org/id/london-borough-council/sutton,London Borough of Sutton,25/07/2023,10012742,26.32, AMAZON,Display folders,Health and Wellbeing,Equipment And Materials Purchase,A40000,
http://opendatacommunities.org/id/london-borough-council/sutton,London Borough of Sutton,27/06/2023,10012742,42.09, HTTPS://WWW.CAKESANDBA,Cake for Marco Leaving,Health and Wellbeing,Catering,A41000,
http://opendatacommunities.org/id/london-borough-council/sutton,London Borough of Sutton,25/07/2023,10012742,4.08, AMAZON,Anokha Ehsaas book,Health and Wellbeing,Books,A43050,
http://opendatacommunities.org/id/london-borough-council/sutton,London Borough of Sutton,26/06/2023,10012742,165.00, SP FLAGS AND FLAGPOL,BUNTING,Health and Wellbeing,Arts Programme,A44286,
http://opendatacommunities.org/id/london-borough-council/sutton,London Borough of Sutton,28/06/2023,10012742,47.99, AMZNMKTPLACE AMAZON.CO,LIBRARIES COSTS,Health and Wellbeing,Arts Programme,A44286,
http://opendatacommunities.org/id/london-borough-council/sutton,London Borough of Sutton,19/07/2023,10012742,31.54, WM MORRISONS STORE,GRoceries,Health and Wellbeing,Equipment And Materials Purchase,A40000,
http://opendatacommunities.org/id/london-borough-council/sutton,London Borough of Sutton,06/07/2023,10012742,14.56, AMZNBUSINESS 510Y829M5,"SPLIT - P�B�O 831-047 - STUDIO ACRYLICS FINE ACRYLIC - ACRYLIC PAINT - VIOLET ACRYLIC - DARK COBALT VIOLET HUE, 100 ML",Health and Wellbeing,Equipment And Materials Purchase,A40000,
http://opendatacommunities.org/id/london-borough-council/sutton,London Borough of Sutton,05/07/2023,10012742,14.99, AMZNMKTPLACE,SPLIT - HANDI STITCH BROWN KRAFT CARDBOARD TUBES (30 PACK) - L10.4 X D4CM / 4.09 X 1.57 INCHES - ROUND PAPER CRAFT ROLLS - CREATIVE DIY TUBE ROLL FOR HANDMADE,Health and Wellbeing,Equipment And Materials Purchase,A40000,
http://opendatacommunities.org/id/london-borough-council/sutton,London Borough of Sutton,05/07/2023,10012742,3.74, AMZNMKTPLACE,"SPLIT - OWILL RAINBOW BALLOONS, 50 PCS 10 INCH LATEX BALLOONS PACK WITH BALLOON KIT,COLOURFUL PARTY BALLOONS, BIRTHDAY PARTY DECORATIONS, MULTICOLOURED BALLOO",Health and Wellbeing,Equipment And Materials Purchase,A40000,
http://opendatacommunities.org/id/london-borough-council/sutton,London Borough of Sutton,01/07/2023,10012742,2.40, WILKO RETAIL LIMITED,LIBRARIES COSTS,Health and Wellbeing,Equipment And Materials Purchase,A40000,
http://opendatacommunities.org/id/london-borough-council/sutton,London Borough of Sutton,01/07/2023,10012742,4.00, WILKO RETAIL LIMITED,LIBRARIES COSTS,Health and Wellbeing,Equipment And Materials Purchase,A40000,
http://opendatacommunities.org/id/london-borough-council/sutton,London Borough of Sutton,01/07/2023,10012742,27.00, WILKO RETAIL LIMITED,LIBRARIES COSTS,Health and Wellbeing,Equipment And Materials Purchase,A40000,
http://opendatacommunities.org/id/london-borough-council/sutton,London Borough of Sutton,01/07/2023,10012742,8.42, WM MORRISONS STORE,Cateringv for Sutton STEAMs Ahead NLHF project,Health and Wellbeing,Catering,A41000,
http://opendatacommunities.org/id/london-borough-council/sutton,London Borough of Sutton,03/07/2023,10012742,10.19, TRADETILLROLLS.CO.UK,Till Rolls for Honeywood,Health and Wellbeing,Equipment And Materials Purchase,A40000,
http://opendatacommunities.org/id/london-borough-council/sutton,London Borough of Sutton,12/07/2023,10012742,14.07, AMZNMKTPLACE,SPLIT - BULLDOG CLIPS LARGE 60PCS 41MM PAPER CLIPS BINDER 1.6 INCH (60PCS-41MM),Health and Wellbeing,Equipment And Materials Purchase,A40000,
http://opendatacommunities.org/id/london-borough-council/sutton,London Borough of Sutton,27/06/2023,10012742,13.95, JUST BE NATURAL,Lavender essential oil,Health and Wellbeing,Equipment And Materials Purchase,A40000,
http://opendatacommunities.org/id/london-borough-council/sutton,London Borough of Sutton,03/07/2023,10012742,10.19, TRADETILLROLLS.CO.UK,Till Rolls for Honeywood,Health and Wellbeing,Equipment And Materials Purchase,A40000,
http://opendatacommunities.org/id/london-borough-council/sutton,London Borough of Sutton,20/07/2023,10012742,230.00, EB  POPULATION HEALTH,CONFERENCE BOOKING,Health and Wellbeing,Conference Expenses,A43075,
http://opendatacommunities.org/id/london-borough-council/sutton,London Borough of Sutton,07/07/2023,10012742,21.98, AMZNMKTPLACE AMAZON.CO,PAPER BAGS FOR ANTENATAL GROUPS THE SERVICE IS PROVIDING,Health and Wellbeing,Other Supplies & Services,A44291,
http://opendatacommunities.org/id/london-borough-council/sutton,London Borough of Sutton,04/07/2023,10012742,30.56, AMZNMKTPLACE AMAZON.CO,SUPPLIES FOR OUTREACH EVENTS AND STAFF,Health and Wellbeing,Other Supplies & Services,A44291,
http://opendatacommunities.org/id/london-borough-council/sutton,London Borough of Sutton,13/07/2023,10012742,5.99, WAITROSE 559,REFRESHMENTS FOR TRAINING MEETING,Health and Wellbeing,Hospitality,A46020,
http://opendatacommunities.org/id/london-borough-council/sutton,London Borough of Sutton,12/07/2023,10012742,3.98, WAITROSE 559,REFRESHMENTS FOR TRAINING MEETING,Health and Wellbeing,Hospitality,A46020,
http://opendatacommunities.org/id/london-borough-council/sutton,London Borough of Sutton,09/07/2023,10012742,6.92, TESCO STORES 3235,REFRESHMENTS FOR TRAINING MEETING,Health and Wellbeing,Hospitality,A46020,
http://opendatacommunities.org/id/london-borough-council/sutton,London Borough of Sutton,03/07/2023,10012742,8.32, SPOTIFY P241A2C3F1,MUSIC FOR WEDDINGS,Health and Wellbeing,Subscriptions,A47010,
http://opendatacommunities.org/id/london-borough-council/sutton,London Borough of Sutton,06/07/2023,10012742,18.00, DAWSONS,KEY CUTTING PAYMENT FOR ROOM G4,People's Services,Equipment And Materials Purchase,A40000,
http://opendatacommunities.org/id/london-borough-council/sutton,London Borough of Sutton,05/07/2023,10012742,-124.88, DOCUSIGN INC. GBP,DOCUSIGN,People's Services,Subscriptions,A47010,
http://opendatacommunities.org/id/london-borough-council/sutton,London Borough of Sutton,17/07/2023,10012742,245.00, IKEA LTD SHOP ONLINE,FURNITURE,People's Services,Business Support Support,H10011,
http://opendatacommunities.org/id/london-borough-council/sutton,London Borough of Sutton,15/07/2023,10012742,-5.99, AMZ SIQIWO,REFUND,People's Services,Business Support Support,H10011,
http://opendatacommunities.org/id/london-borough-council/sutton,London Borough of Sutton,15/07/2023,10012742,-5.99, AMZ SIQIWO,REFUND,People's Services,Business Support Support,H10011,
http://opendatacommunities.org/id/london-borough-council/sutton,London Borough of Sutton,15/07/2023,10012742,-5.99, AMZ SIQIWO,REFUND,People's Services,Business Support Support,H10011,
http://opendatacommunities.org/id/london-borough-council/sutton,London Borough of Sutton,15/07/2023,10012742,-5.99, AMZ SIQIWO,REFUND,People's Services,Business Support Support,H10011,
http://opendatacommunities.org/id/london-borough-council/sutton,London Borough of Sutton,15/07/2023,10012742,-5.99, AMZ SIQIWO,REFUND,People's Services,Business Support Support,H10011,
http://opendatacommunities.org/id/london-borough-council/sutton,London Borough of Sutton,15/07/2023,10012742,-5.99, AMZ SIQIWO,REFUND,People's Services,Business Support Support,H10011,
http://opendatacommunities.org/id/london-borough-council/sutton,London Borough of Sutton,15/07/2023,10012742,-5.99, AMZ SIQIWO,REFUND,People's Services,Business Support Support,H10011,
http://opendatacommunities.org/id/london-borough-council/sutton,London Borough of Sutton,15/07/2023,10012742,-5.99, AMZ SIQIWO,REFUND,People's Services,Business Support Support,H10011,
http://opendatacommunities.org/id/london-borough-council/sutton,London Borough of Sutton,15/07/2023,10012742,-5.99, AMZ SIQIWO,REFUND,People's Services,Business Support Support,H10011,
http://opendatacommunities.org/id/london-borough-council/sutton,London Borough of Sutton,15/07/2023,10012742,-5.99, AMZ SIQIWO,REFUND,People's Services,Business Support Support,H10011,
http://opendatacommunities.org/id/london-borough-council/sutton,London Borough of Sutton,12/07/2023,10012742,40.50, ACOO/PROMOSCENTRAL,LGBTQ+ NETWORK - LANYARDS,Resources,Publicity Materials,A43070,
http://opendatacommunities.org/id/london-borough-council/sutton,London Borough of Sutton,04/07/2023,10012742,144.00, CIPD MEMBERSHIP FEE,"CIPD STUDENT MEMBERSHIP -  ""REDACTED - PERSONAL DATA""",Resources,Miscellaneous Expenses,A49000,
http://opendatacommunities.org/id/london-borough-council/sutton,London Borough of Sutton,04/07/2023,10012742,320.00, CIPD MEMBERSHIP FEE,"CIPD STUDENT MEMBERSHIP -  ""REDACTED - PERSONAL DATA""",Resources,Miscellaneous Expenses,A49000,
http://opendatacommunities.org/id/london-borough-council/sutton,London Borough of Sutton,17/07/2023,10012742,302.50, SQ  THE CIVIC SHOP (A,MAYORAL CAR CRESTSD X 2,Resources,Equipment And Materials Purchase,A40000,
http://opendatacommunities.org/id/london-borough-council/sutton,London Borough of Sutton,11/07/2023,10012742,50.00, SHOE CARE SERVICES,MAYORAL PORTRAIT PLAQUES,Resources,Equipment And Materials Purchase,A40000,
http://opendatacommunities.org/id/london-borough-council/sutton,London Borough of Sutton,01/07/2023,10012742,3.98, SNAPFISH UK,MAYORAL PORTRAIT PRINT,Resources,Equipment And Materials Purchase,A40000,
http://opendatacommunities.org/id/london-borough-council/sutton,London Borough of Sutton,20/07/2023,10012742,14.16, AMZNMKTPLACE,FRAME FOR MAYORAL PORTRAIT,Resources,Equipment And Materials Purchase,A40000,
http://opendatacommunities.org/id/london-borough-council/sutton,London Borough of Sutton,19/07/2023,10012742,6.46, AMZNMKTPLACE,SILVER POLISH FOR THE MAYOR'S PARLOUR,Resources,Equipment And Materials Purchase,A40000,
http://opendatacommunities.org/id/london-borough-council/sutton,London Borough of Sutton,19/07/2023,10012742,27.85, WM MORRISONS STORE,FRUIT JUICES AND CLEANING PRODUCTS,Resources,Equipment And Materials Purchase,A40000,
http://opendatacommunities.org/id/london-borough-council/sutton,London Borough of Sutton,16/07/2023,10012742,23.85, SAINSBURYS SUPERMA,MAYORAL RECEPTION FOR YOUNG COMMISSIONERS - 19.7.23,Resources,Hospitality,A46020,
http://opendatacommunities.org/id/london-borough-council/sutton,London Borough of Sutton,14/07/2023,10012742,460.98, MAILCHIMP,SUBSCRIPTION,Resources,Publicity,A44266,
http://opendatacommunities.org/id/london-borough-council/sutton,London Borough of Sutton,27/06/2023,10012742,128.00, ANTONINOS PIZZA,PIZZA FOR EVENT,Resources,Publicity,A44266,
http://opendatacommunities.org/id/london-borough-council/sutton,London Borough of Sutton,26/07/2023,10012742,4.12, FOREIGN EXCHANGE FEE,FOREIGN EXCHANGE FEE,Resources,Publicity,A44266,
http://opendatacommunities.org/id/london-borough-council/sutton,London Borough of Sutton,21/07/2023,10012742,267.42, MAILCHIMP,SUBSCRIPTION,Resources,Publicity,A44266,
http://opendatacommunities.org/id/london-borough-council/sutton,London Borough of Sutton,18/07/2023,10012742,9.50, AMAZON.CO.UK FI9AU1KY5,PRODUCTS FOR EVENT,Resources,Miscellaneous Expenses,A49000,
http://opendatacommunities.org/id/london-borough-council/sutton,London Borough of Sutton,17/07/2023,10012742,0.84, FOREIGN EXCHANGE FEE,FOREIGN EXCHANGE FEE,Resources,Miscellaneous Expenses,A49000,
http://opendatacommunities.org/id/london-borough-council/sutton,London Borough of Sutton,25/07/2023,10012742,149.95, QRCODEGENERATOR,,Resources,Miscellaneous Expenses,A49000,
http://opendatacommunities.org/id/london-borough-council/sutton,London Borough of Sutton,16/07/2023,10012742,30.55, NOUNPROJECT.COM,SUBSCRIPTION,Resources,Miscellaneous Expenses,A49000,
http://opendatacommunities.org/id/london-borough-council/sutton,London Borough of Sutton,07/07/2023,10012742,20.00, TFL OYSTER AUTO TOPUP,CL&G,Resources,"Grants, Contributions & Donations",A47005,
http://opendatacommunities.org/id/london-borough-council/sutton,London Borough of Sutton,14/07/2023,10012742,25.98, AMZNMKTPLACE,CANCER INNOVATION HUB COSTS,Resources,Equipment And Materials Repairs & Maintenance,A40051,
http://opendatacommunities.org/id/london-borough-council/sutton,London Borough of Sutton,14/07/2023,10012742,20.98, AMAZON.CO.UK BG53W6ZU5,CANCER INNOVATION HUB COSTS,Resources,Equipment And Materials Repairs & Maintenance,A40051,
http://opendatacommunities.org/id/london-borough-council/sutton,London Borough of Sutton,10/07/2023,10012742,15.98, AMZNMKTPLACE AMAZON.CO,CANCER INNOVATION HUB COSTS,Resources,Equipment And Materials Repairs & Maintenance,A40051,
http://opendatacommunities.org/id/london-borough-council/sutton,London Borough of Sutton,30/06/2023,10012742,50.49, AMZNMKTPLACE,ITEMS REQUIRED FOR THE INNOVATION GATEWAY TO COVER H&S SIGNAGE AND HOSPITALITY ITEMS,Resources,Equipment And Materials Repairs & Maintenance,A40051,
http://opendatacommunities.org/id/london-borough-council/sutton,London Borough of Sutton,23/07/2023,10012742,211.09, AMZNMKTPLACE,ITEMS FOR CIVIC,Resources,Equipment And Materials Repairs & Maintenance,A40051,
http://opendatacommunities.org/id/london-borough-council/sutton,London Borough of Sutton,20/07/2023,10012742,36.00, TIMPSON LTD,KEYCUTTING SERVICE,Resources,Equipment And Materials Repairs & Maintenance,A40051,
http://opendatacommunities.org/id/london-borough-council/sutton,London Borough of Sutton,27/06/2023,10012742,129.00, BISNOW,CONFERENCE BOOKING,Development Growth and Regeneration,Fees,A44040,
http://opendatacommunities.org/id/london-borough-council/sutton,London Borough of Sutton,27/06/2023,10012742,109.33, HOTEL MERCURE,HOTEL BOOKING FOR CONFERENCE,Environment Housing and Neighbourhoods,Hotel Accomodation,A46010,
http://opendatacommunities.org/id/london-borough-council/sutton,London Borough of Sutton,06/07/2023,10012742,107.50, WWWSEDNALIGHTINGCOM,TWIN ARM BRACKET FOR NEW LIGHTING IN PUBLIC HALL CAR PARK INCLUDING SHIPPING,Environment Housing and Neighbourhoods,Grounds Maintenance Contract,A28000,
http://opendatacommunities.org/id/london-borough-council/sutton,London Borough of Sutton,10/07/2023,10012742,40.00, WATERSTONES,PURCHASE OF A BOOK (HIGH STREET: HOW OUR TOWN CENTRES CAN BOUNCE BACK FROM THE RETAIL CRISIS),Development Growth and Regeneration,Miscellaneous Expenses,A49000,
http://opendatacommunities.org/id/london-borough-council/sutton,London Borough of Sutton,18/07/2023,10012742,10.00, EASYHOTEL CROYDON LIMI,EMERGENCY ACCOMMODATION FOR HOMELESS HOUSEHOLD,Environment Housing and Neighbourhoods,Bed & Breakfast,A56000,
http://opendatacommunities.org/id/london-borough-council/sutton,London Borough of Sutton,17/07/2023,10012742,57.49, BKG HOTEL AT BOOKING.C,EMERGENCY ACCOMMODATION FOR HOMELESS HOUSEHOLD,Environment Housing and Neighbourhoods,Bed & Breakfast,A56000,
http://opendatacommunities.org/id/london-borough-council/sutton,London Borough of Sutton,13/07/2023,10012742,246.63, BKG HOTEL AT BOOKING.C,EMERGENCY ACCOMMODATION FOR HOMELESS HOUSEHOLD,Environment Housing and Neighbourhoods,Bed & Breakfast,A56000,
http://opendatacommunities.org/id/london-borough-council/sutton,London Borough of Sutton,30/06/2023,10012742,290.33, BKG HOTEL AT BOOKING.C,EMERGENCY ACCOMMODATION FOR HOMELESS HOUSEHOLD,Environment Housing and Neighbourhoods,Bed & Breakfast,A56000,
http://opendatacommunities.org/id/london-borough-council/sutton,London Borough of Sutton,13/07/2023,10012742,159.99, AMZNMKTPLACE AMAZON.CO,OFFICE CHAIR FOR THE QUAD MEMBER OF STAFF A61011 G00440 (100%),People's Services,Client Care/Assistance,A61011,
http://opendatacommunities.org/id/london-borough-council/sutton,London Borough of Sutton,19/07/2023,10012742,150.00, HIGH STREET VOUCHERS,VOUCHERS,People's Services,Client Care/Assistance,A61011,
http://opendatacommunities.org/id/london-borough-council/sutton,London Borough of Sutton,07/07/2023,10012742,65.98, AMZNMKTPLACE,EQUIPMENT FOR THE YOUNG PEOPLE AT THE QUAD FOR ACTIVITIES (100%),People's Services,Client Care/Assistance,A61011,
http://opendatacommunities.org/id/london-borough-council/sutton,London Borough of Sutton,06/07/2023,10012742,26.53, AMZNMKTPLACE,ITEMS REQUIRED FOR THE YOUNG PEOPLE AT THE QUAD FOR ACTIVITIES (105.28%),People's Services,Client Care/Assistance,A61011,
http://opendatacommunities.org/id/london-borough-council/sutton,London Borough of Sutton,06/07/2023,10012742,-1.33, AMZNMKTPLACE,ITEMS REQUIRED FOR THE YOUNG PEOPLE AT THE QUAD FOR ACTIVITIES (-15.84%),People's Services,Client Care/Assistance,A61011,
http://opendatacommunities.org/id/london-borough-council/sutton,London Borough of Sutton,06/07/2023,10012742,23.97, AMZNMKTPLACE,EQUIPMENT FOR THE YOUNG PEOPLE AT THE QUAD FOR ACTIVITIES (100%),People's Services,Client Care/Assistance,A61011,
http://opendatacommunities.org/id/london-borough-council/sutton,London Borough of Sutton,29/06/2023,10012742,27.57, EMPIRE CINEMAS,CINEMA TICKETS PAYMENT FOR CLIENT,People's Services,Client Care/Assistance,A61011,
http://opendatacommunities.org/id/london-borough-council/sutton,London Borough of Sutton,04/07/2023,10012742,133.33, HM PASSPORT OFFICE,PASSPORT APPLICATION FOR A YOUNG PERSON,People's Services,Equipment And Materials Purchase,A40000,
http://opendatacommunities.org/id/london-borough-council/sutton,London Borough of Sutton,28/06/2023,10012742,70.83, POST OFFICE COUNTER,PASSPORT APPLICATION PAYMENT FOR A YOUNG PERSON,People's Services,Equipment And Materials Purchase,A40000,
http://opendatacommunities.org/id/london-borough-council/sutton,London Borough of Sutton,04/07/2023,10012742,3.38, EXCHANGE FEE,EXCHANGE FEE FROM MOBICIP PAYMENT,People's Services,Subscriptions,A47010,
http://opendatacommunities.org/id/london-borough-council/sutton,London Borough of Sutton,03/07/2023,10012742,122.96, MOBICIP ENTERPRISE,MOBICIP PARENTAL CONTROL FOR CLA LAPTOP PAYMENTS,People's Services,Subscriptions,A47010,
http://opendatacommunities.org/id/london-borough-council/sutton,London Borough of Sutton,03/07/2023,10012742,312.00, THORPE PARK,THORPE PARK TICKETS PAYMENT FOR CLIENT,People's Services,Miscellaneous Expenses,A49000,
http://opendatacommunities.org/id/london-borough-council/sutton,London Borough of Sutton,10/07/2023,10012742,239.40, BACK CARE SOLUTIONS,239.40 - A49000 G03040 9999 - BACK CARE SOLUTIONS .PNG,People's Services,Miscellaneous Expenses,A49000,
http://opendatacommunities.org/id/london-borough-council/sutton,London Borough of Sutton,06/07/2023,10012742,13.54, MCDONALD S RESTAURANT,ACTIVITY,People's Services,Miscellaneous Expenses,A49000,
http://opendatacommunities.org/id/london-borough-council/sutton,London Borough of Sutton,27/06/2023,10012742,12.44, MCDONALDS1049,JC ACTIVITY,People's Services,Miscellaneous Expenses,A49000,
http://opendatacommunities.org/id/london-borough-council/sutton,London Borough of Sutton,26/06/2023,10012742,20.50, PRIMARK,EG AK AND MW,People's Services,Miscellaneous Expenses,A49000,
http://opendatacommunities.org/id/london-borough-council/sutton,London Borough of Sutton,13/07/2023,10012742,32.00, SAINSBURYS S/MKTS,Leaving care expenses,People's Services,Miscellaneous Expenses,A49000,
http://opendatacommunities.org/id/london-borough-council/sutton,London Borough of Sutton,05/07/2023,10012742,99.42, SP CRICKETDIRECT,CRICKET ITEM REQUIRED FOR YOUNG PERSON,People's Services,Miscellaneous Expenses,A49000,
http://opendatacommunities.org/id/london-borough-council/sutton,London Borough of Sutton,11/07/2023,10012742,29.00, AMZNMKTPLACE,ITEM REQUIRED FOR YOUNG PERSON (100%),People's Services,Miscellaneous Expenses,A49000,
http://opendatacommunities.org/id/london-borough-council/sutton,London Borough of Sutton,07/07/2023,10012742,-61.20, BACK CARE SOLUTIONS,REFUND FOR WRONG ITEM SENT,People's Services,Miscellaneous Expenses,A49000,
http://opendatacommunities.org/id/london-borough-council/sutton,London Borough of Sutton,13/07/2023,10012742,30.00, WWW.ARGOS.CO.UK,Leaving care expenses,People's Services,Set Up Costs - Children Leaving Care,A61021,
http://opendatacommunities.org/id/london-borough-council/sutton,London Borough of Sutton,06/07/2023,10012742,20.15, HOBBYCRAFT,Leaving care expenses,People's Services,Set Up Costs - Children Leaving Care,A61021,
http://opendatacommunities.org/id/london-borough-council/sutton,London Borough of Sutton,25/07/2023,10012742,113.90, MARK FISHER,Leaving care expenses,People's Services,Set Up Costs - Children Leaving Care,A61021,
http://opendatacommunities.org/id/london-borough-council/sutton,London Borough of Sutton,14/07/2023,10012742,5.99, AMZNMKTPLACE,Leaving care expenses,People's Services,Set Up Costs - Children Leaving Care,A61021,
http://opendatacommunities.org/id/london-borough-council/sutton,London Borough of Sutton,12/07/2023,10012742,21.83, WWW.WIGHTLINK.CO.UK,FERRY TRANSPORT FOR A SOCIAL WORKER,People's Services,Miscellaneous Expenses,A49000,
http://opendatacommunities.org/id/london-borough-council/sutton,London Borough of Sutton,20/07/2023,10012742,45.00, NOTONTHEHIGHSTREET.COM,NOT ON THE HIGH STREET,People's Services,Miscellaneous Expenses,A49000,
http://opendatacommunities.org/id/london-borough-council/sutton,London Borough of Sutton,12/07/2023,10012742,26.20, WWW.WIGHTLINK.CO.UK,FERRY,People's Services,C.C.A Travel & Subsistance,A61010,
http://opendatacommunities.org/id/london-borough-council/sutton,London Borough of Sutton,27/06/2023,10012742,15.20, NEW SOUTHERN RAILW,EG VISIT,People's Services,C.C.A Travel & Subsistance,A61010,
http://opendatacommunities.org/id/london-borough-council/sutton,London Borough of Sutton,12/07/2023,10012742,70.32, Z HOTELS GLASGOW,HOTEL BOOKING FOR SOCIAL WORKER,People's Services,C.C.A Travel & Subsistance,A61010,
http://opendatacommunities.org/id/london-borough-council/sutton,London Borough of Sutton,27/06/2023,10012742,17.50, WWW.WIGHTLINK.CO.UK,FERRY TRAVEL REQUIRED FOR A VISIT FOR A SOCIAL WORKER,People's Services,C.C.A Travel & Subsistance,A61010,
http://opendatacommunities.org/id/london-borough-council/sutton,London Borough of Sutton,06/07/2023,10012742,67.36, EASYJET,EASYJET PAYMENT FOR SOCIAL WORKER,People's Services,C.C.A Travel & Subsistance,A61010,
http://opendatacommunities.org/id/london-borough-council/sutton,London Borough of Sutton,06/07/2023,10012742,55.00, EASYJET,EASYJET PAYMENT FOR SOCIAL WORKER,People's Services,C.C.A Travel & Subsistance,A61010,
http://opendatacommunities.org/id/london-borough-council/sutton,London Borough of Sutton,29/06/2023,10012742,163.35, EASYJET,EASYJET FLIGHT PAYMENT,People's Services,C.C.A Travel & Subsistance,A61010,
http://opendatacommunities.org/id/london-borough-council/sutton,London Borough of Sutton,29/06/2023,10012742,61.60, BKG HOTEL AT BOOKING.C,HOTEL BOOKING PAYMENT,People's Services,Client Care/Assistance,A61011,
http://opendatacommunities.org/id/london-borough-council/sutton,London Borough of Sutton,04/07/2023,10012742,"2,341.00", SVT LTD,TRAINING PROGRAMME REQUIRED FOR STAFF,People's Services,Training - Professional Qualification,A15024,
http://opendatacommunities.org/id/london-borough-council/sutton,London Borough of Sutton,06/07/2023,10012742,25.98, AMZNMKTPLACE,ITEMS REQUIRED FOR WILLOW RISE CHILDREN'S HOME YOUNG PEOPLE (100%),People's Services,Equipment And Materials Purchase,A40000,
http://opendatacommunities.org/id/london-borough-council/sutton,London Borough of Sutton,06/07/2023,10012742,385.00, LBSUTTON,"PLANNING APPLICATION FOR A NEW HOME, NEEDS TO COME OUT OF CAPITAL COST CODE M61725, NOT ON LLOYDS WEBSITE NEEDS TO BE JOURNAL TRANSFERRED FROM G03070",People's Services,Miscellaneous Expenses,A49000,
http://opendatacommunities.org/id/london-borough-council/sutton,London Borough of Sutton,06/07/2023,10012742,-1.00, ASDA GROCERIES ONLINE,REFUND FOR ASDA ORDER FOR WILLOW RISE CHILDREN'S HOME,People's Services,Miscellaneous Expenses,A49000,
http://opendatacommunities.org/id/london-borough-council/sutton,London Borough of Sutton,06/07/2023,10012742,97.65, ASDA GROCERIES ONLINE,FOOD SHOPPING FOR WILLOW RISE CHILDREN'S HOME,People's Services,Miscellaneous Expenses,A49000,
http://opendatacommunities.org/id/london-borough-council/sutton,London Borough of Sutton,25/07/2023,10012742,25.00, GEN REGISTER OFFICE,CERTIFICATE,People's Services,Miscellaneous Expenses,A49000,
http://opendatacommunities.org/id/london-borough-council/sutton,London Borough of Sutton,23/07/2023,10012742,8.29, AMZNMKTPLACE AMAZON.CO,"SPLIT - 10 PIECES PLASTIC PINWHEEL,SUNFLOWER WIND SPINNERS LAWN GARDEN DIY WINDMILL,COLORFUL PINWHEELS WIND SPINNER SET FOR CHILDREN KIDS PARTY GARDEN YARD OU (100%)",People's Services,Miscellaneous Expenses,A49000,
http://opendatacommunities.org/id/london-borough-council/sutton,London Borough of Sutton,21/07/2023,10012742,33.98, AMZNMKTPLACE AMAZON.CO,"SPLIT - EXTRA LARGE FABRIC RAISED BED GARDEN PLANT FLOWER GROW BAG,180X90X30CM VEGETABLE PLANTING BAG (180 * 90 * 30CM) (100%)",People's Services,Miscellaneous Expenses,A49000,
http://opendatacommunities.org/id/london-borough-council/sutton,London Borough of Sutton,17/07/2023,10012742,15.99, NETFLIX.COM,NETFLIX PAYMENT,People's Services,Miscellaneous Expenses,A49000,
http://opendatacommunities.org/id/london-borough-council/sutton,London Borough of Sutton,06/07/2023,10012742,7.79, AMZNMKTPLACE AMAZON.CO,SPLIT - BRIFIT SILENT ALARM CLOCKS BEDSIDE NON TICKING BATTERY POWERED BEDSIDE CLOCK WITH LARGE DISPLAY SNOOZE NIGHT LIGHT FUNCTION FOR KIDS HEAVY SLEEPERS TR (100%),People's Services,Miscellaneous Expenses,A49000,
http://opendatacommunities.org/id/london-borough-council/sutton,London Borough of Sutton,06/07/2023,10012742,7.79, AMZNMKTPLACE AMAZON.CO,SPLIT - BRIFIT SILENT ALARM CLOCKS BEDSIDE NON TICKING BEDSIDE CLOCK BATTERY POWERED WITH NIGHT LIGHT LARGE DISPLAY SNOOZE FUNCTION BASIC ALARM CLOCK FOR KIDS (100%),People's Services,Miscellaneous Expenses,A49000,
http://opendatacommunities.org/id/london-borough-council/sutton,London Borough of Sutton,10/07/2023,10012742,12.99, AMZNMKTPLACE,"SPLIT - JUVALE 20 PACK MOTIVATIONAL QUOTES WALL ART FEATURING 20 CHALKBOARD DESIGNS, GYM POSTER, ROOM DECOR FOR CLASSROOMS, 33 X 48 CM (100%)",People's Services,Miscellaneous Expenses,A49000,
http://opendatacommunities.org/id/london-borough-council/sutton,London Borough of Sutton,10/07/2023,10012742,164.99, AMZNMKTPLACE,"SPLIT - KETER 250001 STORE IT OUT PRO OUTDOOR STORAGE SHED, 145.5 X 82 X 123CM BEIGE/BROWN (100%)",People's Services,Miscellaneous Expenses,A49000,
http://opendatacommunities.org/id/london-borough-council/sutton,London Borough of Sutton,10/07/2023,10012742,233.32, AMZNMKTPLACE,SPLIT - DONNAY INDOOR OUTDOOR TABLE TENNIS TABLE (93.34%),People's Services,Miscellaneous Expenses,A49000,
http://opendatacommunities.org/id/london-borough-council/sutton,London Borough of Sutton,10/07/2023,10012742,16.66, AMZNMKTPLACE,BALANCING ENTRY AMOUNT (6.66%),People's Services,Miscellaneous Expenses,A49000,
http://opendatacommunities.org/id/london-borough-council/sutton,London Borough of Sutton,07/07/2023,10012742,59.98, AMZNMKTPLACE AMAZON.CO,"SPLIT - RAISED GARDEN BED PLANTER BOX OUTDOOR, PATIO GREENHOUSE FLOWER VEGETABLE GROW BOX WITH LID & LEGS (GREEN) (100%)",People's Services,Miscellaneous Expenses,A49000,
http://opendatacommunities.org/id/london-borough-council/sutton,London Borough of Sutton,06/07/2023,10012742,14.98, AMZNMKTPLACE AMAZON.CO,"SPLIT - HOT BARGAINS 100 X KRAFT TRIPLE WALLED DISPOSABLE PAPER RIPPLE CUPS + LIDS FOR FREE, 8OZ (8OZ) (100%)",People's Services,Miscellaneous Expenses,A49000,
http://opendatacommunities.org/id/london-borough-council/sutton,London Borough of Sutton,06/07/2023,10012742,17.99, AMZNMKTPLACE AMAZON.CO,SPLIT - ARGON TABLEWARE 6X 350ML COLOURED COFFEE MUGS - CERAMIC STONEWARE TEA LATTE CAPPUCCINO CUPS SET WITH HANDLE (GREY) (100%),People's Services,Miscellaneous Expenses,A49000,
http://opendatacommunities.org/id/london-borough-council/sutton,London Borough of Sutton,06/07/2023,10012742,14.49, AMZNMKTPLACE AMAZON.CO,"SPLIT - SIGNATURE STRIPED ADULTS TEENAGERS QUILT DUVET COVER AND 2 PILLOWCASE BEDDING BED SET, BLUE, DOUBLE (100%)",People's Services,Miscellaneous Expenses,A49000,
http://opendatacommunities.org/id/london-borough-council/sutton,London Borough of Sutton,12/07/2023,10012742,7.98, AMZNMKTPLACE AMAZON.CO,ITEMS REQUIRED FOR WILLOW RISE CHILDREN'S HOME YOUNG PEOPLE (100%),People's Services,Miscellaneous Expenses,A49000,
http://opendatacommunities.org/id/london-borough-council/sutton,London Borough of Sutton,14/07/2023,10012742,142.46, WWW.ARGOS.CO.UK,ITEMS REQUIRED FOR WILLOW  RISE CHILDRENS HOME,People's Services,Miscellaneous Expenses,A49000,
http://opendatacommunities.org/id/london-borough-council/sutton,London Borough of Sutton,13/07/2023,10012742,117.82, ASDA GROCERIES ONLINE,ASDA SHOPPING FOR WILLOW RISE CHILDREN'S HOME,People's Services,Miscellaneous Expenses,A49000,
http://opendatacommunities.org/id/london-borough-council/sutton,London Borough of Sutton,13/07/2023,10012742,-1.10, ASDA GROCERIES ONLINE,ASDA NO RECEIPT PROVIDED AS THEY DO NOT SEND REFUND CONFIRMATIONS,People's Services,Miscellaneous Expenses,A49000,
http://opendatacommunities.org/id/london-borough-council/sutton,London Borough of Sutton,19/07/2023,10012742,14.14, AMZNMKTPLACE,"SPLIT - KH 2-4 PLAYER BADMINTON RACKETS SET FOR ADULTS KIDS,FAMILY BACK GARDEN SPORTS GAMES,RACQUETS,SHUTTLECOCKS & CARRY BAG INCLUDED (100%)",People's Services,Miscellaneous Expenses,A49000,
http://opendatacommunities.org/id/london-borough-council/sutton,London Borough of Sutton,19/07/2023,10012742,6.17, AMZNMKTPLACE,SPLIT - 6.5L LITRE WATERING CAN WITH ROSE STRONG PLASTIC GREEN (100%),People's Services,Miscellaneous Expenses,A49000,
http://opendatacommunities.org/id/london-borough-council/sutton,London Borough of Sutton,20/07/2023,10012742,29.16, AMZNMKTPLACE,SPLIT - OYPLA MEDIUM 4M ADJUSTABLE FOLDABLE BADMINTON TENNIS VOLLEYBALL NET (100%),People's Services,Miscellaneous Expenses,A49000,
http://opendatacommunities.org/id/london-borough-council/sutton,London Borough of Sutton,02/07/2023,10012742,18.99, AMZNMKTPLACE,SPLIT - JJUUYOU WELCOME MATS FRONT DOOR MAT INDOOR OUTDOOR ENTRYWAY WITH NON SLIP RUBBER BACK FUNNY WELCOME-ISH DEPENDS WHO YOU ARE AND HOW LONG YOU STAY ENTR (57.58%),People's Services,Miscellaneous Expenses,A49000,
http://opendatacommunities.org/id/london-borough-council/sutton,London Borough of Sutton,02/07/2023,10012742,13.99, AMZNMKTPLACE,"SPLIT - MOKO MAGNETIC MENU BOARD FOR KITCHEN FRIDGE WITH 8 COLOR CHALK MARKERS, 16""X12"" DRY ERASE WEEKLY MEAL PLANNER AND GROCERY SHOPPING LIST NOTEPAD CHALKB (42.42%)",People's Services,Miscellaneous Expenses,A49000,
http://opendatacommunities.org/id/london-borough-council/sutton,London Borough of Sutton,02/07/2023,10012742,11.95, AMZNMKTPLACE,"SPLIT - A & B TRADERS WONDERDRY TEA TOWELS KITCHEN PACK OF 10, COTTON ABSORBENT LONG LASTING CATERING CLOTHS (GREY) (20.29%)",People's Services,Miscellaneous Expenses,A49000,
http://opendatacommunities.org/id/london-borough-council/sutton,London Borough of Sutton,02/07/2023,10012742,11.98, AMZNMKTPLACE,SPLIT - COWORK-UP OFFICE DESK ORGANISER MESH DESK TIDY STATIONARY PEN HOLDER FOR SCHOOL HOME DESKTOP SUPPLIES ORGANISATION WITH 8 COMPARTMENTS & 1 DRAWER (20.34%),People's Services,Miscellaneous Expenses,A49000,
http://opendatacommunities.org/id/london-borough-council/sutton,London Borough of Sutton,02/07/2023,10012742,21.99, AMZNMKTPLACE,"SPLIT - DISH DRAINER BLACK (43.5 X 24.5 X 34.5), 2-TIER DISH DRAINER STAINLESS STEEL DISH DRAINER WITH UTENSIL HOLDER AND DRIP TRAY (37.34%)",People's Services,Miscellaneous Expenses,A49000,
http://opendatacommunities.org/id/london-borough-council/sutton,London Borough of Sutton,06/07/2023,10012742,23.99, AMZNMKTPLACE AMAZON.CO,"SPLIT - KITCHEN UTENSILS SET, HEROGO 15 PCS SILICONE COOKING UTENSILS WITH HOLDER, NON STICK & HEAT RESISTANT COOKING TOOLS WITH STAINLESS STEEL HANDLE, SILIC (45.28%)",People's Services,Miscellaneous Expenses,A49000,
http://opendatacommunities.org/id/london-borough-council/sutton,London Borough of Sutton,06/07/2023,10012742,28.99, AMZNMKTPLACE AMAZON.CO,"SPLIT - DIGITAL ALARM CLOCK FOR BEDROOM, DIGITAL CLOCK WITH MODERN CURVED DESIGN, CONSPICUOUS BLUE LED NUMBERS, 5 LEVELS BRIGHTNESS+OFF, 2 VOLUME, 3 ALARM TON (54.72%)",People's Services,Miscellaneous Expenses,A49000,
http://opendatacommunities.org/id/london-borough-council/sutton,London Borough of Sutton,06/07/2023,10012742,8.94, AMZNMKTPLACE AMAZON.CO,"SPLIT - UTOPIA BEDDING FITTED SHEET DOUBLE, NAVY - DEEP POCKET 14 INCH (35 CM) - EASY CARE - SOFT BRUSHED POLYESTER MICROFIBRE FABRIC - SHRINKAGE AND FADE RES (27.66%)",People's Services,Miscellaneous Expenses,A49000,
http://opendatacommunities.org/id/london-borough-council/sutton,London Borough of Sutton,06/07/2023,10012742,14.94, AMZNMKTPLACE AMAZON.CO,SPLIT - UTOPIA BEDDING DUVET COVER DOUBLE - SOFT MICROFIBRE POLYESTER DUVET COVER WITH PILLOW CASES - BEDDING QUILT COVER SET (GREY) (46.23%),People's Services,Miscellaneous Expenses,A49000,
http://opendatacommunities.org/id/london-borough-council/sutton,London Borough of Sutton,06/07/2023,10012742,8.44, AMZNMKTPLACE AMAZON.CO,"SPLIT - UTOPIA BEDDING FITTED SHEET DOUBLE, GREY - DEEP POCKET 14 INCH (35 CM) - EASY CARE - SOFT BRUSHED MICROFIBRE FABRIC - SHRINKAGE AND FADE RESISTANT - B (26.11%)",People's Services,Miscellaneous Expenses,A49000,
http://opendatacommunities.org/id/london-borough-council/sutton,London Borough of Sutton,20/07/2023,10012742,12.37, AMZNMKTPLACE,"SPLIT - NALAX BADMINTON BIRDIE,12-PACK PROFESSIONAL DUCK FEATHER BADMINTON SHUTTLECOCKS FEATHER BALL WITH GREAT DURABILITY STABILITY AND BALANCE,SUITABLE FOR (40.3%)",People's Services,Miscellaneous Expenses,A49000,
http://opendatacommunities.org/id/london-borough-council/sutton,London Borough of Sutton,20/07/2023,10012742,12.49, AMZNMKTPLACE,"SPLIT - RDLCAR FIRE ACTION SIGN - SIGNS FOR FIRE SAFETY & FIRE EMERGENCY, OFFICE & HOME SAFETY SIGN, FIRE EXIT SIGN W/EMERGENCY NUMBER, ASSEMBLY POINT & OTHER (40.71%)",People's Services,Miscellaneous Expenses,A49000,
http://opendatacommunities.org/id/london-borough-council/sutton,London Borough of Sutton,20/07/2023,10012742,6.99, AMZNMKTPLACE,SPLIT - 50 PACK NEW DURABLE ABS PING PONG BALLS TABLE TENNIS BALLS 40+ 1 STAR TRAINING & PRACTICE RACQUET BALL IDEAL FOR BEER PONG DIY ART CRAFT FUN SCHOOL GA (18.99%),People's Services,Miscellaneous Expenses,A49000,
http://opendatacommunities.org/id/london-borough-council/sutton,London Borough of Sutton,26/06/2023,10012742,11.50, WWW.BETTER.ORG.UK,TRAMPOLINE ACTIVITY PAYMENT FOR CLIENT,People's Services,Miscellaneous Expenses,A49000,
http://opendatacommunities.org/id/london-borough-council/sutton,London Borough of Sutton,21/07/2023,10012742,18.74, HPI INSTANT INK UK,PRINTER SUBSCRIPTION INK FOR WILLOW RISE,People's Services,Miscellaneous Expenses,A49000,
http://opendatacommunities.org/id/london-borough-council/sutton,London Borough of Sutton,29/06/2023,10012742,143.25, ASDA GROCERIES ONLINE,ASDA SHOPPING PAYMENT,People's Services,Miscellaneous Expenses,A49000,
http://opendatacommunities.org/id/london-borough-council/sutton,London Borough of Sutton,27/06/2023,10012742,55.00, WWW.ARGOS.CO.UK,EQUIPMENT,People's Services,Miscellaneous Expenses,A49000,
http://opendatacommunities.org/id/london-borough-council/sutton,London Borough of Sutton,15/07/2023,10012742,5.42, ASDA GROCERIES ONLINE,ASDA FOR WILLOW RISE,People's Services,Miscellaneous Expenses,A49000,
http://opendatacommunities.org/id/london-borough-council/sutton,London Borough of Sutton,02/07/2023,10012742,12.97, AMZNMKTPLACE,"SPLIT - LATKRUU LED STRIP LIGHTS WITH REMOTE, 15M LED LIGHTS WITH BLUETOOTH APP & 44-KEYS REMOTE, MUSIC SYNC COLOUR CHANGING MOOD LED LIGHT STRIP RGB LIGHTS 5 (22.03%)",People's Services,Miscellaneous Expenses,A49000,
http://opendatacommunities.org/id/london-borough-council/sutton,London Borough of Sutton,02/07/2023,10012742,22.50, AMZNMKTPLACE,"SPLIT - TOASTER 4 SLICE TOASTER BT410 STEELINESS STEEL HOUSING BLACK TOASTER 1300W AUTO PUP UP FUNCTION, VARIABLE ELECTRONIC TIMING CONTROL (44.55%)",People's Services,Miscellaneous Expenses,A49000,
http://opendatacommunities.org/id/london-borough-council/sutton,London Borough of Sutton,02/07/2023,10012742,28.00, AMZNMKTPLACE,"SPLIT - RUSSELL HOBBS 26051 CORDLESS ELECTRIC KETTLE - CONTEMPORARY HONEYCOMB DESIGN WITH FAST BOIL AND BOIL DRY PROTECTION, 1.7 LITRE, 3000 W, BLACK (55.45%)",People's Services,Miscellaneous Expenses,A49000,
http://opendatacommunities.org/id/london-borough-council/sutton,London Borough of Sutton,02/07/2023,10012742,19.99, AMZNMKTPLACE,"SPLIT - SYSN CUSHION INSERTS 18""X18"" PACK OF 4 WHITE CUSHION PADS BOUNCE BACK HOLLOW VIRGIN FIBRE FILLERS PLUMP CUSHION FOR SOFA,BEDS,CHAIRS,OUTDOOR 45CM X 45 (100%)",People's Services,Miscellaneous Expenses,A49000,
http://opendatacommunities.org/id/london-borough-council/sutton,London Borough of Sutton,02/07/2023,10012742,80.00, AMZNMKTPLACE,"SPLIT - BOSCH HOME AND GARDEN CORDLESS COMBI DRILL UNIVERSALIMPACT 18 (2 BATTERIES, 18 VOLT SYSTEM, IN CARRYING CASE) (100%)",People's Services,Miscellaneous Expenses,A49000,
http://opendatacommunities.org/id/london-borough-council/sutton,London Borough of Sutton,02/07/2023,10012742,30.88, AMZNMKTPLACE,"SPLIT - AMAZON BASICS KITCHEN RECTANGULAR BIN WITH STEEL BAR PEDAL, SOFT-CLOSING MECHANISM FOR HOME AND OFFICE USE, 5 LITRE/1.3 GALLON (SIZE - SMALL), SATIN N (100%)",People's Services,Miscellaneous Expenses,A49000,
http://opendatacommunities.org/id/london-borough-council/sutton,London Borough of Sutton,01/07/2023,10012742,12.95, AMZNMKTPLACE,SPLIT - VERBIER INSPIRATIONAL QUOTES WALL ART (SET B) - 12 X A4 MOTIVATIONAL POSTERS FOR ROOM DECOR/GYM POSTER/OFFICE DECORATION/BEDROOM/KITCHEN WALL ART/UPLI (15.43%),People's Services,Miscellaneous Expenses,A49000,
http://opendatacommunities.org/id/london-borough-council/sutton,London Borough of Sutton,01/07/2023,10012742,16.99, AMZNMKTPLACE,"SPLIT - AOAOPQ FUNNY DOOR MATS OUTDOOR WELCOME MAT INDOOR 60X90CM WITH NATURAL RUBBER BACKING,FUNNY DOORMATS OUTSIDE FOR HIGH TRAFFIC AREA EASY TO CLEAN ENTRA (20.25%)",People's Services,Miscellaneous Expenses,A49000,
http://opendatacommunities.org/id/london-borough-council/sutton,London Borough of Sutton,01/07/2023,10012742,53.97, AMZNMKTPLACE,"SPLIT - BLACK WOODEN PICTURE FRAME A4 WITH MOUNT,SET OF 3,A4 FRAME,A4 BLACK FRAME,A4 PICTURE FRAME,A4 POSTER FRAME,A4 CERTIFICATE FRAME,FREESTANDING AND WALL (64.32%)",People's Services,Miscellaneous Expenses,A49000,
http://opendatacommunities.org/id/london-borough-council/sutton,London Borough of Sutton,01/07/2023,10012742,15.44, AMZNMKTPLACE,"SPLIT - AMAZON BASICS KITCHEN RECTANGULAR BIN WITH STEEL BAR PEDAL, SOFT-CLOSING MECHANISM FOR HOME AND OFFICE USE, 5 LITRE/1.3 GALLON (SIZE - SMALL), SATIN N (100%)",People's Services,Miscellaneous Expenses,A49000,
http://opendatacommunities.org/id/london-borough-council/sutton,London Borough of Sutton,01/07/2023,10012742,59.49, AMZNMKTPLACE,SPLIT - NON STICK POTS AND PANS SET - INDUCTION HOB POT SET - 8PCS KITCHEN COOKWARE WITH LIDS - COOKING MARBLE SAUCEPAN POTS AND FRYING PANS - BY NUOVVA (100%),People's Services,Miscellaneous Expenses,A49000,
http://opendatacommunities.org/id/london-borough-council/sutton,London Borough of Sutton,30/06/2023,10012742,6.99, AMZNMKTPLACE,SPLIT - DENTAL AESTHETICS SMILE TOOTHBRUSH TIMER & 10 DISCLOSING TABLETS (PURPLE) (100%),People's Services,Miscellaneous Expenses,A49000,
http://opendatacommunities.org/id/london-borough-council/sutton,London Borough of Sutton,30/06/2023,10012742,119.89, AMZNMKTPLACE,"SPLIT - SONGMICS RECYCLING BIN, 3 X 18 L TRIPLE KITCHEN BIN, 3 COMPARTMENT PEDAL BIN WITH SOFT-CLOSE LIDS, PLASTIC INNER BUCKETS, AND HANDLES, BLACK LTB54BK (100%)",People's Services,Miscellaneous Expenses,A49000,
http://opendatacommunities.org/id/london-borough-council/sutton,London Borough of Sutton,30/06/2023,10012742,10.50, AMZNMKTPLACE,SPLIT - FEBREZE FABRIC FRESHENER ANTIBACTERIAL SPRAY MORNING FRESHNESS 2 X 375ML (100%),People's Services,Miscellaneous Expenses,A49000,
http://opendatacommunities.org/id/london-borough-council/sutton,London Borough of Sutton,30/06/2023,10012742,14.95, AMZNMKTPLACE,"SPLIT - SWISSPACK 18""X 18"" 4 PCS VELVET SOFT DECORATIVE SQUARE THROW PILLOW CASE CUSHION COVERS PILLOWCASES FOR LIVINGROOM SOFA BEDROOM WITH INVISIBLE ZIPPER 45X45 CMS BLACK (100%)",People's Services,Miscellaneous Expenses,A49000,
http://opendatacommunities.org/id/london-borough-council/sutton,London Borough of Sutton,30/06/2023,10012742,29.99, AMZNMKTPLACE,"SPLIT - RAINBERG 3PK FRYING PAN SET 20CM, 24CM & 28CM GRANITE FRYING PAN NONSTICK COATING, ANTI-SCRATCH PANS, NON-STICK FRYING PANS, STONE FRYING PAN, INDUCTION COMPATIBLE. (100%)",People's Services,Miscellaneous Expenses,A49000,
http://opendatacommunities.org/id/london-borough-council/sutton,London Borough of Sutton,14/07/2023,10012742,66.66, SP MRDRIPZONE,ITEMS FOR A YP IN WILLOW RISE,People's Services,Client Care/Assistance,A61011,
http://opendatacommunities.org/id/london-borough-council/sutton,London Borough of Sutton,26/06/2023,10012742,3.25, COSTA COFFEE 43011148,OS ACTIVITY,People's Services,Miscellaneous Expenses,A49000,
http://opendatacommunities.org/id/london-borough-council/sutton,London Borough of Sutton,30/06/2023,10012742,159.90, ZOOM.US 888-799-9666,SUBSCRIPTION REQUIRED FOR A TEAM,People's Services,Subscriptions,A47010,
http://opendatacommunities.org/id/london-borough-council/sutton,London Borough of Sutton,17/07/2023,10012742,159.90, ZOOM.US 888-799-9666,ZOOM SUBRCRIPTION,People's Services,Subscriptions,A47010,
http://opendatacommunities.org/id/london-borough-council/sutton,London Borough of Sutton,21/07/2023,10012742,33.00, SUTTON REGISTER OFFICE,BIRTH CERT,People's Services,Equipment And Materials Purchase,A40000,
http://opendatacommunities.org/id/london-borough-council/sutton,London Borough of Sutton,21/07/2023,10012742,33.00, SUTTON REGISTER OFFICE,BIRTH CERT,People's Services,Equipment And Materials Purchase,A40000,
http://opendatacommunities.org/id/london-borough-council/sutton,London Borough of Sutton,21/07/2023,10012742,33.00, SUTTON REGISTER OFFICE,BIRTH CERT,People's Services,Equipment And Materials Purchase,A40000,
http://opendatacommunities.org/id/london-borough-council/sutton,London Borough of Sutton,11/07/2023,10012742,18.33, SUTTON REGISTER OFFICE,BIRTH CERTIFICATE REQUIRED FOR SOCIAL WORKER,People's Services,Equipment And Materials Purchase,A40000,
http://opendatacommunities.org/id/london-borough-council/sutton,London Borough of Sutton,12/07/2023,10012742,22.00, SUTTON REGISTER OFFICE,BIRTH CERT,People's Services,Equipment And Materials Purchase,A40000,
http://opendatacommunities.org/id/london-borough-council/sutton,London Borough of Sutton,12/07/2023,10012742,22.00, SUTTON REGISTER OFFICE,BIRTH CERT,People's Services,Equipment And Materials Purchase,A40000,
http://opendatacommunities.org/id/london-borough-council/sutton,London Borough of Sutton,11/07/2023,10012742,22.00, SUTTON REGISTER OFFICE,BIRTH CERT,People's Services,Equipment And Materials Purchase,A40000,
http://opendatacommunities.org/id/london-borough-council/sutton,London Borough of Sutton,03/07/2023,10012742,33.00, SUTTON REGISTER OFFICE,33 A40000 G03120 9999 - SUTTON BIRTH CERTIFICATES .PDF,People's Services,Equipment And Materials Purchase,A40000,
http://opendatacommunities.org/id/london-borough-council/sutton,London Borough of Sutton,13/07/2023,10012742,33.00, SUTTON REGISTER OFFICE,SOCIAL WORKER REQUEST FOR BIRTH CERTS,People's Services,Equipment And Materials Purchase,A40000,
http://opendatacommunities.org/id/london-borough-council/sutton,London Borough of Sutton,14/07/2023,10012742,25.35, AMZNBUSINESS 4E97O95R5,"SPLIT - CLAIREFONTAINE - REF 4850Z - EUROPA NOTEMAKER SIDEBOUND NOTEBOOK (120 PAGES) - A5 SIZE, 90GSM BRUSHED VELLUM PAPER, MICRO-PERFORATED SHEETS, LINED RUL (100%)",People's Services,Miscellaneous Expenses,A49000,
http://opendatacommunities.org/id/london-borough-council/sutton,London Borough of Sutton,24/07/2023,10012742,90.00, GEN REGISTER OFFICE,BIRTH CERT PAYMENT FOR TEAM,People's Services,Miscellaneous Expenses,A49000,
http://opendatacommunities.org/id/london-borough-council/sutton,London Borough of Sutton,24/07/2023,10012742,27.50, SURREY CC CARD PAY,BIRTH CERT PAYMENT FOR TEAM,People's Services,Miscellaneous Expenses,A49000,
http://opendatacommunities.org/id/london-borough-council/sutton,London Borough of Sutton,24/07/2023,10012742,27.50, SURREY CC CARD PAY,BIRTH CERT PAYMENT FOR TEAM,People's Services,Miscellaneous Expenses,A49000,
http://opendatacommunities.org/id/london-borough-council/sutton,London Borough of Sutton,24/07/2023,10012742,27.50, SURREY CC CARD PAY,BIRTH CERT PAYMENT FOR TEAM,People's Services,Miscellaneous Expenses,A49000,
http://opendatacommunities.org/id/london-borough-council/sutton,London Borough of Sutton,12/07/2023,10012742,34.09, MINICABIT,TAXI BOOKING FOR SUPERVISED CONTACT AT SUTTON FAMILY CENTRE,People's Services,C.C.A Travel & Subsistance,A61010,
http://opendatacommunities.org/id/london-borough-council/sutton,London Borough of Sutton,12/07/2023,10012742,-17.11, MINICABIT,REFUND FOR TAXI BOOKING FOR SUPERVISED CONTACT AT SUTTON FAMILY CENTRE,People's Services,C.C.A Travel & Subsistance,A61010,
http://opendatacommunities.org/id/london-borough-council/sutton,London Borough of Sutton,12/07/2023,10012742,18.12, MINICABIT,TAXI BOOKING FOR SUPERVISED CONTACT AT SUTTON FAMILY CENTRE,People's Services,C.C.A Travel & Subsistance,A61010,
http://opendatacommunities.org/id/london-borough-council/sutton,London Borough of Sutton,03/07/2023,10012742,150.00, WALLINGTON CARS & COUR,TAXI PAYMENT,People's Services,C.C.A Travel & Subsistance,A61010,
http://opendatacommunities.org/id/london-borough-council/sutton,London Borough of Sutton,14/07/2023,10012742,622.92, PREMIER INN,HOTEL REQUIRED FOR A CLIENT,People's Services,C.C.A Travel & Subsistance,A61010,
http://opendatacommunities.org/id/london-borough-council/sutton,London Borough of Sutton,24/07/2023,10012742,618.33, PREMIER INN,HOTEL REQUIRED FOR A CLIENT,People's Services,Client Care/Assistance,A61011,
http://opendatacommunities.org/id/london-borough-council/sutton,London Borough of Sutton,04/07/2023,10012742,35.00, MARKS&SPENCER PLC,FLOWERS,People's Services,Equipment And Materials Purchase,A40000,
http://opendatacommunities.org/id/london-borough-council/sutton,London Borough of Sutton,03/07/2023,10012742,45.00, EB  SUPPORTED ACCOMMOD,TRAINING,People's Services,Staff Development And Training,A15022,
http://opendatacommunities.org/id/london-borough-council/sutton,London Borough of Sutton,26/06/2023,10012742,35.00, MARKS&SPENCER PLC,M&S FLOWER PAYMENT FOR CLIENT,People's Services,Equipment And Materials Purchase,A40000,
http://opendatacommunities.org/id/london-borough-council/sutton,London Borough of Sutton,26/06/2023,10012742,35.00, MARKS&SPENCER PLC,M&S FLOWER PAYMENT FOR CLIENT,People's Services,Equipment And Materials Purchase,A40000,
http://opendatacommunities.org/id/london-borough-council/sutton,London Borough of Sutton,11/07/2023,10012742,209.60, WWW.BIGYELLOW.CO.UK,BIG YELLOW STORAGE,People's Services,Miscellaneous Expenses,A49000,
http://opendatacommunities.org/id/london-borough-council/sutton,London Borough of Sutton,10/07/2023,10012742,50.00, WWW.OVOENERGY.COM,ELECTRICITY,People's Services,Electricity,A21000,
http://opendatacommunities.org/id/london-borough-council/sutton,London Borough of Sutton,10/07/2023,10012742,50.00, WWW.OVOENERGY.COM,GAS,People's Services,Gas,A21003,
http://opendatacommunities.org/id/london-borough-council/sutton,London Borough of Sutton,14/07/2023,10012742,67.10, WWW.VEOLIA.COM,NEW HOME WITHIN LBS SUBSCRIPTION,People's Services,Miscellaneous Expenses,A49000,
http://opendatacommunities.org/id/london-borough-council/sutton,London Borough of Sutton,30/06/2023,10012742,349.45, HOLIDAY INNS,"HOLIDAY INN 2 NIGHTS 28/06/23 - 30/06/23 FOR ""REDACTED - PERSONAL DATA""",People's Services,Staff Development And Training,A15022,
http://opendatacommunities.org/id/london-borough-council/sutton,London Borough of Sutton,20/07/2023,10012742,29.50, VIVA ACCESS LTD,TRAINING,People's Services,Training - Professional Qualification,A15024,
http://opendatacommunities.org/id/london-borough-council/sutton,London Borough of Sutton,20/07/2023,10012742,29.50, VIVA ACCESS LTD,TRAINING,People's Services,Training - Professional Qualification,A15024,
http://opendatacommunities.org/id/london-borough-council/sutton,London Borough of Sutton,20/07/2023,10012742,29.50, VIVA ACCESS LTD,TRAINING,People's Services,Training - Professional Qualification,A15024,
http://opendatacommunities.org/id/london-borough-council/sutton,London Borough of Sutton,18/07/2023,10012742,29.17, MARKS&SPENCER PLC,FLOWERS FOR LSCP CHAIR,People's Services,Miscellaneous Expenses,A49000,
http://opendatacommunities.org/id/london-borough-council/sutton,London Borough of Sutton,26/06/2023,10012742,8.56, AMZN MKTP UK TO5UW10Q5,SPLIT - PYREX MEASURING JUG 500ML | CAPACITY 568ML / 20 OUNCE | P586 (39.74%),People's Services,Miscellaneous Expenses,A49000,
http://opendatacommunities.org/id/london-borough-council/sutton,London Borough of Sutton,26/06/2023,10012742,15.24, AMZNMKTPLACE AMAZON.CO,"SPLIT - FINEDINE MIXING BOWLS SET - 5-PIECE, EASY-GRIP, STAINLESS STEEL MIXING BOWLS FOR BAKING, COOKING, SALAD & FOOD PREP - LARGE, MEDIUM AND SMALL METAL NE (100%)",People's Services,Miscellaneous Expenses,A49000,
http://opendatacommunities.org/id/london-borough-council/sutton,London Borough of Sutton,26/06/2023,10012742,12.98, AMZN MKTP UK TO5UW10Q5,"SPLIT - ZUVO NONSTICK 12 CUP MUFFIN TRAY - BPA FREE & DISHWASHER SAFE CUPCAKE PAN MUFFIN TRAY WITH STAIN-RESISTANT, BAKING MOULD FOR MUFFINS OR CUPCAKES, BAKE (60.26%)",People's Services,Miscellaneous Expenses,A49000,
http://opendatacommunities.org/id/london-borough-council/sutton,London Borough of Sutton,20/07/2023,10012742,35.40, VIVA ACCESS LTD," ""REDACTED - PERSONAL DATA"" - VIVA ACCESS ALL ABOUT STAIRLIFTS & WHEELCHAIR (HOME) LIFTS 07/12/23",People's Services,Staff Development And Training,A15022,
http://opendatacommunities.org/id/london-borough-council/sutton,London Borough of Sutton,06/07/2023,10012742,72.00, ST THOMAS TRAINING LTD," ""REDACTED - PERSONAL DATA""ST THOMAS THE INTERFACE BETWEEN THE MENTAL HEALTH ACT 1983 AND THE MENTAL CAPACITY ACT 2005 - BRIEFING SESSION - 24/07/23",People's Services,Staff Development And Training,A15022,
http://opendatacommunities.org/id/london-borough-council/sutton,London Borough of Sutton,05/07/2023,10012742,35.40, VIVA ACCESS LTD," ""REDACTED - PERSONAL DATA"" - VIVA ACCESS DISABLED FACILITIES GRANT: LEVEL 2 - 02/11/23",People's Services,Staff Development And Training,A15022,
http://opendatacommunities.org/id/london-borough-council/sutton,London Borough of Sutton,05/07/2023,10012742,35.40, VIVA ACCESS LTD," ""REDACTED - PERSONAL DATA"" - VIVA ACCESS READING & USING PLANS - 07/11/23",People's Services,Staff Development And Training,A15022,
http://opendatacommunities.org/id/london-borough-council/sutton,London Borough of Sutton,05/07/2023,10012742,42.00, VIVA ACCESS LTD," ""REDACTED - PERSONAL DATA"" - VIVA ACCESS BATHROOM ADAPTATION & DESIGN: PART 1 - 13/09/23",People's Services,Staff Development And Training,A15022,
http://opendatacommunities.org/id/london-borough-council/sutton,London Borough of Sutton,26/06/2023,10012742,150.00, WWW.NCORE.ORG.UK," ""REDACTED - PERSONAL DATA"" - POSTURE AND BALANCE IN RELATION TO UPPER LIMBS FOR ASSISTANTS EVENT (NCORE TRAINING) 07/07/23",People's Services,Staff Development And Training,A15022,
http://opendatacommunities.org/id/london-borough-council/sutton,London Borough of Sutton,04/07/2023,10012742,35.40, VIVA ACCESS LTD," ""REDACTED - PERSONAL DATA""- VIVA ACCESS HOUSING & EQUIPMENT SOLUTIONS FOR USERS WITH DEMENTIA - 13/10/23",People's Services,Staff Development And Training,A15022,
http://opendatacommunities.org/id/london-borough-council/sutton,London Borough of Sutton,04/07/2023,10012742,42.00, VIVA ACCESS LTD," ""REDACTED - PERSONAL DATA""- VIVA ACCESS BATHROOM ADAPTATION & DESIGN: PART 1 - 13/09/23",People's Services,Staff Development And Training,A15022,
http://opendatacommunities.org/id/london-borough-council/sutton,London Borough of Sutton,03/07/2023,10012742,35.40, VIVA ACCESS LTD," ""REDACTED - PERSONAL DATA""- VIVA ACCESS RAMPING FOR WHEELCHAIR USERS: LEVEL 2 - 05/12/2023",People's Services,Staff Development And Training,A15022,
http://opendatacommunities.org/id/london-borough-council/sutton,London Borough of Sutton,03/07/2023,10012742,465.50, S.C.T.S,SOCIAL CARE TRAINING SOLUTIONS X2 COURSES (CONTACT WITH BIRTH FAMILIES & COMPASSION FATIGUE),People's Services,Staff Development And Training,A15022,
http://opendatacommunities.org/id/london-borough-council/sutton,London Borough of Sutton,03/07/2023,10012742,698.25, S.C.T.S,"SOCIAL CARE TRAINING SOLUTIONS X3 COURSES (LIFE STORY TRAINING FOR FOSTER CARERS, DE-ESCALATION SKILLS & FOSTERING REGULATIONS AND NATIONAL MINIMUM STANDARDS REFRESHER)",People's Services,Staff Development And Training,A15022,
http://opendatacommunities.org/id/london-borough-council/sutton,London Borough of Sutton,05/07/2023,10012742,335.83, HELLO SERVICES LTD,CLEANING SERVICE REQUIRED FOR FAMILY,People's Services,Client Care/Assistance,A61011,
http://opendatacommunities.org/id/london-borough-council/sutton,London Borough of Sutton,29/06/2023,10012742,-9.96, AMZ THE GLOWHOUSE,"SPLIT - 54 PIECE MINI JUNGLE ANIMALS TOYS SET,REALISTIC WILD ANIMALS FIGURE?VINYL PASTIC ANIMAL PARTY FAVORS TOYS FOR BOYS KIDS TODDLERS FOREST SMALL FARM ANI (23.93%)",People's Services,Equipment And Materials Purchase,A40000,
http://opendatacommunities.org/id/london-borough-council/sutton,London Borough of Sutton,29/06/2023,10012742,-6.66, AMZ THE GLOWHOUSE,"SPLIT - PROFESSIONAL SKETCH AND DRAWING PENCILS SET,ART PENCIL(8B-2H). (12-COUNT) (16%)",People's Services,Equipment And Materials Purchase,A40000,
http://opendatacommunities.org/id/london-borough-council/sutton,London Borough of Sutton,29/06/2023,10012742,-24.99, AMZ THE GLOWHOUSE,SPLIT - THE GLOWHOUSE AIR DRYING MODELLING CLAY NYLON REINFORCED 12.5KG (TERRACOTTA) (60.07%),People's Services,Equipment And Materials Purchase,A40000,
http://opendatacommunities.org/id/london-borough-council/sutton,London Borough of Sutton,27/06/2023,10012742,9.96, AMZNMKTPLACE,"SPLIT - 54 PIECE MINI JUNGLE ANIMALS TOYS SET,REALISTIC WILD ANIMALS FIGURE?VINYL PASTIC ANIMAL PARTY FAVORS TOYS FOR BOYS KIDS TODDLERS FOREST SMALL FARM ANI (23.93%)",People's Services,Equipment And Materials Purchase,A40000,
http://opendatacommunities.org/id/london-borough-council/sutton,London Borough of Sutton,27/06/2023,10012742,24.99, AMZNMKTPLACE,SPLIT - THE GLOWHOUSE AIR DRYING MODELLING CLAY NYLON REINFORCED 12.5KG (TERRACOTTA) (60.06%),People's Services,Equipment And Materials Purchase,A40000,
http://opendatacommunities.org/id/london-borough-council/sutton,London Borough of Sutton,27/06/2023,10012742,6.66, AMZNMKTPLACE,"SPLIT - PROFESSIONAL SKETCH AND DRAWING PENCILS SET,ART PENCIL(8B-2H). (12-COUNT) (16.01%)",People's Services,Equipment And Materials Purchase,A40000,
http://opendatacommunities.org/id/london-borough-council/sutton,London Borough of Sutton,27/06/2023,10012742,4.56, AMZNMKTPLACE,"SPLIT - COATES 47000225 DIAMETER WILLOW CHARCOAL MEDIUM, PACK OF 25, BLACK, 4-6 MM (100%)",People's Services,Equipment And Materials Purchase,A40000,
http://opendatacommunities.org/id/london-borough-council/sutton,London Borough of Sutton,16/07/2023,10012742,7.78, AMZNBUSINESS W08GS68B5,"SPLIT - RAPESCO 1042 ECO POPPER WALLETS, A3, CLEAR TRANSPARENT, PACK OF 5 (100%)",People's Services,Equipment And Materials Purchase,A40000,
http://opendatacommunities.org/id/london-borough-council/sutton,London Borough of Sutton,14/07/2023,10012742,53.95, BLUE FLORIST,FLOWERS,People's Services,Equipment And Materials Purchase,A40000,
http://opendatacommunities.org/id/london-borough-council/sutton,London Borough of Sutton,24/07/2023,10012742,287.48, AMZ BIGFURNITUREWARE,BED REQUIRED FOR A CLIENT,People's Services,Miscellaneous Expenses,A49000,
http://opendatacommunities.org/id/london-borough-council/sutton,London Borough of Sutton,18/07/2023,10012742,41.67, WALLINGTON CARS & COUR,TAXI REQUIRED FOR A YOUNG PERSON,People's Services,C.C.A Travel & Subsistance,A61010,
http://opendatacommunities.org/id/london-borough-council/sutton,London Borough of Sutton,17/07/2023,10012742,100.00, GREGGS,GIFT CARDS FOR PEOPLE DIRECTORATE INDUCTION NEW STARTERS,People's Services,Staff Development And Training,A15022,
http://opendatacommunities.org/id/london-borough-council/sutton,London Borough of Sutton,03/07/2023,10012742,100.00, GREGGS,GIFT CARDS FOR PEOPLE DIRECTORATE INDUCTION NEW STARTERS,People's Services,Leadership Development,A15023,
http://opendatacommunities.org/id/london-borough-council/sutton,London Borough of Sutton,02/07/2023,10012742,104.03, STORAGEMART UK #5215,STORAGE FOR CLIENTS BELONGINGS AS REQUESTED BY SOCIAL WORKER,People's Services,Storage And Archiving Services,A44085,
http://opendatacommunities.org/id/london-borough-council/sutton,London Borough of Sutton,19/07/2023,10012742,"1,815.70", PEARSON EDUCATION LTD.,EQUIPMENT,People's Services,Client Care/Assistance,A61011,
http://opendatacommunities.org/id/london-borough-council/sutton,London Borough of Sutton,24/07/2023,10012742,12.95, DAWSONS,START TEAM EXPENSES,People's Services,Miscellaneous Expenses,A49000,
http://opendatacommunities.org/id/london-borough-council/sutton,London Borough of Sutton,18/07/2023,10012742,271.56, EB  CQC TRAINING COURS,START TEAM EXPENSES,People's Services,Miscellaneous Expenses,A49000,
http://opendatacommunities.org/id/london-borough-council/sutton,London Borough of Sutton,12/07/2023,10012742,11.00, SUTTON REGISTER OFFICE,DEATHCERTDBENNETT,Resources,Funeral Expenses,A44220,
http://opendatacommunities.org/id/london-borough-council/sutton,London Borough of Sutton,06/07/2023,10012742,11.00, LBSUTTON MOTO,"DEATHCERT ""REDACTED - PERSONAL DATA""",Resources,Funeral Expenses,A44220,
http://opendatacommunities.org/id/london-borough-council/sutton,London Borough of Sutton,19/07/2023,10012742,11.00, LBSUTTON MOTO,"DEATHCERT ""REDACTED - PERSONAL DATA""",Resources,Funeral Expenses,A44220,
http://opendatacommunities.org/id/london-borough-council/sutton,London Borough of Sutton,29/06/2023,10012742,160.00, WWW.PLANNING.CO,PLANNING APPLICATION FEE,Development Growth and Regeneration,Internal Fees,C20001,
http://opendatacommunities.org/id/london-borough-council/sutton,London Borough of Sutton,13/07/2023,10012742,149.33, WWW.PLANNING.CO,"PLANNING APPLICATION FEE - GATE LODGE, SUTTON HOSPITAL, COTSWOLD ROAD, SUTTON, SM2 5NF",Development Growth and Regeneration,Internal Fees,C20001,
http://opendatacommunities.org/id/london-borough-council/sutton,London Borough of Sutton,10/07/2023,10012742,17.06, COSTCO WHOLESALE #121,CATERING REFLECTION AND PLANNING DAY 11072023,Health and Wellbeing,Staff Development And Training,A15022,
http://opendatacommunities.org/id/london-borough-council/sutton,London Borough of Sutton,10/07/2023,10012742,12.45, WM MORRISONS STORE,CATERING REFLECTION AND PLANNING DAY 11072023,Health and Wellbeing,Staff Development And Training,A15022,
http://opendatacommunities.org/id/london-borough-council/sutton,London Borough of Sutton,21/07/2023,10012742,151.00, EDIVIDERS.CO.UK,EXAM DIVIDERS FOR IT LEARNERS,Health and Wellbeing,Classroom furniture and equipment,A40017,
http://opendatacommunities.org/id/london-borough-council/sutton,London Borough of Sutton,16/07/2023,10012742,153.70, ENVELOPES LTD.,ENVELOPES LTD,Health and Wellbeing,Stationery,A43015,
http://opendatacommunities.org/id/london-borough-council/sutton,London Borough of Sutton,01/07/2023,10012742,72.22, GSUITE_SUTTONCOLLEGE.A,GOOGLE CLOUD EMEA LIMITED 4756888837,Health and Wellbeing,Subscriptions,A47010,
http://opendatacommunities.org/id/london-borough-council/sutton,London Borough of Sutton,20/07/2023,10012742,26.62, AMZNMKTPLACE,SPLIT - ANIMAL MASK WHITE CARD COLOUR-IN MASKS KIDS DIY GRAFFITI MASKS HAND PAINTING ART CRAFT FOR COSPLAY HALLOWEEN CHRISTMAS BIRTHDAY PARTY BAG FILLERS 24 P (71.09%),Health and Wellbeing,Equipment And Materials Purchase,A40000,
http://opendatacommunities.org/id/london-borough-council/sutton,London Borough of Sutton,20/07/2023,10012742,10.84, AMZNMKTPLACE,"SPLIT - RUBBER STAMP LETTERS ALPHABETS, DEDOOT 70 PCS ALPHABET STAMPS FOR POTTERY VINTAGE WOODEN NUMBER AND LETTER SYMBOL ALPHABET MINI STAMPS FOR CLAY CRAFTS (28.91%)",Health and Wellbeing,Equipment And Materials Purchase,A40000,
http://opendatacommunities.org/id/london-borough-council/sutton,London Borough of Sutton,20/07/2023,10012742,3.92, AMZNMKTPLACE,SPLIT - HOUSE OF CARD & PAPER A4 160 GSM CARD - RAINBOW PASTEL COLOURED CARD (PACK OF 50 SHEETS) (100%),Health and Wellbeing,Equipment And Materials Purchase,A40000,
http://opendatacommunities.org/id/london-borough-council/sutton,London Borough of Sutton,20/07/2023,10012742,6.32, AMZNMKTPLACE,SPLIT - A5 EMERALD GREEN CARD 50 SHEETS GREEN CRAFT CARD 160GSM COLOURED PRINTER CARD SHEETS (100%),Health and Wellbeing,Equipment And Materials Purchase,A40000,
http://opendatacommunities.org/id/london-borough-council/sutton,London Borough of Sutton,19/07/2023,10012742,3.92, AMZNMKTPLACE,SPLIT - INTENSE YELLOW A4 COLOURED CRAFT CARD 160GSM X 50 SHEETS,Health and Wellbeing,Equipment And Materials Purchase,A40000,
http://opendatacommunities.org/id/london-borough-council/sutton,London Borough of Sutton,06/07/2023,10012742,7.49, AMZNMKTPLACE,"SPLIT - 60PCS BALLOONS SET, 12 INCHES GOLD BLACK AND WHITE BALLOONS METALLIC LATEX BALLOONS CONFETTI BALLOONS HELIUM BALLOONS FOR WEDDING BIRTHDAY SHOWER PART (100%)",Health and Wellbeing,Equipment And Materials Purchase,A40000,
http://opendatacommunities.org/id/london-borough-council/sutton,London Borough of Sutton,05/07/2023,10012742,27.92, AMZNMKTPLACE,SPLIT - HELIUM KING HELIUM CANISTER - 30 BALLOON HELIUM GAS CYLINDER (100%),Health and Wellbeing,Equipment And Materials Purchase,A40000,
http://opendatacommunities.org/id/london-borough-council/sutton,London Borough of Sutton,01/07/2023,10012742,13.33, WILKO RETAIL LIMITED,WILKO COMPOST STEAM 16.00 010723,Health and Wellbeing,Equipment And Materials Purchase,A40000,
http://opendatacommunities.org/id/london-borough-council/sutton,London Borough of Sutton,01/07/2023,10012742,5.83, WILKO RETAIL LIMITED,WILKO-STEAM COMPOST-&-REFRESH-010723-7.00,Health and Wellbeing,Equipment And Materials Purchase,A40000,
http://opendatacommunities.org/id/london-borough-council/sutton,London Borough of Sutton,01/07/2023,10012742,0.83, THE WORKS,WORKS-STEAM-TAPE-010723-1.00,Health and Wellbeing,Equipment And Materials Purchase,A40000,
http://opendatacommunities.org/id/london-borough-council/sutton,London Borough of Sutton,04/07/2023,10012742,29.92, AMZNMKTPLACE,"SPLIT - DADABIG 4 PACK 12M/40FEET VALENTINE'S DAY DOUBLE SIDED GLITTER PAPER TRIANGLE FLAG, BLACK AND GOLD BUNTING DECORATION PARTY SUPPLY BIRTHDAY PENNANT FO (100%)",Health and Wellbeing,Equipment And Materials Purchase,A40000,
http://opendatacommunities.org/id/london-borough-council/sutton,London Borough of Sutton,04/07/2023,10012742,24.99, AMZNMKTPLACE,SPLIT - A4 BRIGHT GREEN COLOUR PAPER 80GSM SHEETS DOUBLE SIDED PRINTER PAPER COPIER ORIGAMI FLYERS DRAWING SCHOOL OFFICE PRINTING 210MM X 297MM (A4 BRIGHT GREEN PAPER - 80GSM - 500 SHEETS) (100%),Health and Wellbeing,Equipment And Materials Purchase,A40000,
http://opendatacommunities.org/id/london-borough-council/sutton,London Borough of Sutton,01/07/2023,10012742,4.58, POUNDLAND LTD - 1211,POUNDLAND MATERIALS STEAM 5.50 010723,Health and Wellbeing,Equipment And Materials Purchase,A40000,
http://opendatacommunities.org/id/london-borough-council/sutton,London Borough of Sutton,13/07/2023,10012742,0.83, POUNDLAND LTD - 1211,POUNDLAND-1.00-130723-SUPERGLUE,Health and Wellbeing,Equipment And Materials Purchase,A40000,
http://opendatacommunities.org/id/london-borough-council/sutton,London Borough of Sutton,11/07/2023,10012742,42.00, WM MORRISONS STORE,MORRISONS DEPOSIT 20 BAL 42 REFLECTION DAY 110723,Health and Wellbeing,Catering,A41000,
http://opendatacommunities.org/id/london-borough-council/sutton,London Borough of Sutton,11/07/2023,10012742,60.00, WM MORRISONS STORE,MORRISONS 60 REFLECTION DAY 110723,Health and Wellbeing,Catering,A41000,
http://opendatacommunities.org/id/london-borough-council/sutton,London Borough of Sutton,13/07/2023,10012742,4.25, WM MORRISONS STORE,MORRISONS-AWARDS-4.25-130723,Health and Wellbeing,Catering,A41000,
http://opendatacommunities.org/id/london-borough-council/sutton,London Borough of Sutton,13/07/2023,10012742,92.44, WM MORRISONS STORE,MORRISONS-130723-AWARDS 92.44,Health and Wellbeing,Catering,A41000,
http://opendatacommunities.org/id/london-borough-council/sutton,London Borough of Sutton,06/07/2023,10012742,11.67, POUNDLAND LTD - 1211,POUNDLAND-REFLECTION-DAY-14.00-060723,Health and Wellbeing,Catering,A41000,
http://opendatacommunities.org/id/london-borough-council/sutton,London Borough of Sutton,06/07/2023,10012742,35.69, WM MORRISONS STORE,MORRISONS-REFLECTION-DAY-42.83-060723,Health and Wellbeing,Catering,A41000,
http://opendatacommunities.org/id/london-borough-council/sutton,London Borough of Sutton,01/07/2023,10012742,8.04, GREGGS,STEAM REFRESHMENTS VOLUNTEERS 9.65 010723,Health and Wellbeing,Catering,A41000,
http://opendatacommunities.org/id/london-borough-council/sutton,London Borough of Sutton,05/07/2023,10012742,16.67, MY.MORRISONS.COM,MORRISONS DEPOSIT 20 BAL 42 REFLECTION DAY 110723,Health and Wellbeing,Catering,A41000,
http://opendatacommunities.org/id/london-borough-council/sutton,London Borough of Sutton,01/07/2023,10012742,7.20, GREGGS,STEAM-EVENT-REFRESHMENTS-7.20-GREGGS-010723,Health and Wellbeing,Catering,A41000,
http://opendatacommunities.org/id/london-borough-council/sutton,London Borough of Sutton,30/06/2023,10012742,91.58, FACEBK  BWAM3P37A2,FACEBOOK 2324 300623 91.58,Health and Wellbeing,Publicity,A44266,
http://opendatacommunities.org/id/london-borough-council/sutton,London Borough of Sutton,01/07/2023,10012742,4.17, POUNDLAND LTD - 1211,POUNDLAND-EVENT-RESOURCES-STEAM-010723-5.00,Health and Wellbeing,Publicity,A44266,
http://opendatacommunities.org/id/london-borough-council/sutton,London Borough of Sutton,07/07/2023,10012742,47.99, ADOBE STOCK,ADOBE 47.99 070723,Health and Wellbeing,Publicity,A44266,
http://opendatacommunities.org/id/london-borough-council/sutton,London Borough of Sutton,30/06/2023,10012742,91.81, MAILCHIMP,MAILCHIMP 110.17 300623,Health and Wellbeing,Publicity,A44266,
http://opendatacommunities.org/id/london-borough-council/sutton,London Borough of Sutton,29/06/2023,10012742,16.62, AMZNMKTPLACE,SPLIT - AIR DRYING MODELLING CLAY NYLON REINFORCED 12.5KG (STONE) (100%),Health and Wellbeing,Publicity,A44266,
http://opendatacommunities.org/id/london-borough-council/sutton,London Borough of Sutton,27/06/2023,10012742,15.21, POUNDLAND LTD - 1211,POUNDLAND EVENT RESOURCES FOR STEAM 270623,Health and Wellbeing,Publicity,A44266,
http://opendatacommunities.org/id/london-borough-council/sutton,London Borough of Sutton,27/06/2023,10012742,8.50, PRIMARK,PRIMARK ADDITIONAL TSHIRT 8.50 270623,Health and Wellbeing,Publicity,A44266,
http://opendatacommunities.org/id/london-borough-council/sutton,London Borough of Sutton,26/06/2023,10012742,500.00, FACEBK  4CYHNQK6A2,FACEBOOK 500.00 260623,Health and Wellbeing,Publicity,A44266,
http://opendatacommunities.org/id/london-borough-council/sutton,London Borough of Sutton,18/07/2023,10012742,95.00, INSTANTPRINT.CO.UK,INSTANTPRINT 180723 114.00 5000 STUDENT CARDS,Health and Wellbeing,Equipment And Materials Purchase,A40000,
http://opendatacommunities.org/id/london-borough-council/sutton,London Borough of Sutton,06/07/2023,10012742,5.84, AMZNMKTPLACE,"SPLIT - SMITHPACKAGING A4 SELF ADHESIVE ADDRESS LABELS, 14 LABEL PER SHEET, 100 SHEETS, 99.1 X 38.1MM 1400 LABELS (100%)",Health and Wellbeing,Equipment And Materials Purchase,A40000,
http://opendatacommunities.org/id/london-borough-council/sutton,London Borough of Sutton,12/07/2023,10012742,148.47, AMZNMKTPLACE,NEW CHAIR FOR STAFF - AMAZON ORDER 10/7/23 178.17,Health and Wellbeing,Insurance Claims,A44261,
http://opendatacommunities.org/id/london-borough-council/sutton,London Borough of Sutton,12/07/2023,10012742,148.47, AMZNMKTPLACE AMAZON.CO,NEW CHAIR FOR STAFF - AMAZON ORDER 10/7/23 178.17,Health and Wellbeing,Insurance Claims,A44261,
http://opendatacommunities.org/id/london-borough-council/sutton,London Borough of Sutton,10/07/2023,10012742,75.00, WWW.JOHNLEWIS.COM,3 X PEDESTAL FANS FOR COLLEGE,Health and Wellbeing,Insurance Claims,A44261,
http://opendatacommunities.org/id/london-borough-council/sutton,London Borough of Sutton,06/07/2023,10012742,60.70, OSBORNE BOOKS LIMITED,AAT Q2022 BOOKS,Health and Wellbeing,Books,A43050,
http://opendatacommunities.org/id/london-borough-council/sutton,London Borough of Sutton,13/07/2023,10012742,10.00, AMAZON.CO.UK 4M1P95045,SPLIT - AMAZON.CO.UK GIFT CARD FOR ANY AMOUNT IN A BLACK AND SILVER MINI ENVELOPE (100%),People's Services,LAC - Education,A44280,
http://opendatacommunities.org/id/london-borough-council/sutton,London Borough of Sutton,13/07/2023,10012742,10.00, AMAZON.CO.UK 2Y7IQ6JR5,SPLIT - AMAZON.CO.UK GIFT CARD FOR ANY AMOUNT IN A BLACK AND SILVER MINI ENVELOPE (100%),People's Services,LAC - Education,A44280,
http://opendatacommunities.org/id/london-borough-council/sutton,London Borough of Sutton,13/07/2023,10012742,10.00, AMAZON.CO.UK I26NM05G5,SPLIT - AMAZON.CO.UK GIFT CARD FOR ANY AMOUNT IN A BLACK AND SILVER MINI ENVELOPE (100%),People's Services,LAC - Education,A44280,
http://opendatacommunities.org/id/london-borough-council/sutton,London Borough of Sutton,13/07/2023,10012742,5.82, AMZNMKTPLACE,SPLIT - MATHS SET GEOMETRY SET MUSCCCM COMPASS SET 8 PIECES SCHOOL SUPPLIES DRAWING COMPASS PROTRACTOR SET RULERS FOR STUDENT IN CARRY CASE (105.28%),People's Services,LAC - Education,A44280,
http://opendatacommunities.org/id/london-borough-council/sutton,London Borough of Sutton,13/07/2023,10012742,-0.35, AMZNMKTPLACE,BALANCING ENTRY AMOUNT (-15.84%),People's Services,LAC - Education,A44280,
http://opendatacommunities.org/id/london-borough-council/sutton,London Borough of Sutton,13/07/2023,10012742,4.01, AMZNMKTPLACE,"SPLIT - BIC CRISTAL ORIGINAL BALLPOINT , COMFORTABLE BIRO PENS, MEDIUM POINT (1.0MM), ASSORTED COLOURS, PACK OF 10 (104.43%)",People's Services,LAC - Education,A44280,
http://opendatacommunities.org/id/london-borough-council/sutton,London Borough of Sutton,12/07/2023,10012742,907.98, OVERCLOCKERS UK,MEDION ERAZER SPECIALIST P10 N,People's Services,LAC - Education,A44280,
http://opendatacommunities.org/id/london-borough-council/sutton,London Borough of Sutton,11/07/2023,10012742,20.46, AMZNMKTPLACE AMAZON.CO,"SPLIT - KINETIC SAND, 6LB MOULDABLE SENSORY PLAY SAND AMAZON EXCLUSIVE 3-COLOUR BUNDLE PACK (BLUE, GREEN, PURPLE) ONLY AVAILABLE AT AMAZON! (100%)",People's Services,LAC - Education,A44280,
http://opendatacommunities.org/id/london-borough-council/sutton,London Borough of Sutton,11/07/2023,10012742,39.96, AMZNMKTPLACE,SPLIT - KINETIC SAND METALLIC GOLD COLOUR SAND 454G (100%),People's Services,LAC - Education,A44280,
http://opendatacommunities.org/id/london-borough-council/sutton,London Borough of Sutton,11/07/2023,10012742,8.32, AMZNMKTPLACE AMAZON.CO,SPLIT - SO SLIME SSC 122U GIANT BUCKET 1KG (100%),People's Services,LAC - Education,A44280,
http://opendatacommunities.org/id/london-borough-council/sutton,London Borough of Sutton,11/07/2023,10012742,3.32, AMZNMKTPLACE,"SPLIT - GUKASXI 5PCS CUTE SNOWBALL MAKER CLIPS, WINTER OUTDOOR PLAY SNOW BEACH TOYS PLAY SAND TOYS, INCLUDING BALL,DINOSAUR,DEER,HEART,BEAR, 5 STYLE SHAPED SN (100%)",People's Services,LAC - Education,A44280,
http://opendatacommunities.org/id/london-borough-council/sutton,London Borough of Sutton,11/07/2023,10012742,11.24, AMZNMKTPLACE,"SPLIT - TOYMYTOY KIDS BEACH TOYS SAND PLAY TOYS SAND MODELS SET - SAFARI ANIMALS, SEA CREATURES, MINI CASTLES, TOOLS KIT - SUMMER OUTDOOR FUN (100%)",People's Services,LAC - Education,A44280,
http://opendatacommunities.org/id/london-borough-council/sutton,London Borough of Sutton,10/07/2023,10012742,18.12, AMZNMKTPLACE AMAZON.CO,"SPLIT - HP 305, BLACK/TRI-COLOUR ORIGINAL INK CARTRIDGES (6ZD17AE) (PACK OF 2) (100%)",People's Services,LAC - Education,A44280,
http://opendatacommunities.org/id/london-borough-council/sutton,London Borough of Sutton,10/07/2023,10012742,49.99, AMZNMKTPLACE,"SPLIT - HP ENVY 6020E ALL IN ONE COLOUR PRINTER WITH 6 MONTHS OF INSTANT INK INCLUDED WITH HP+, WHITE (100%)",People's Services,LAC - Education,A44280,
http://opendatacommunities.org/id/london-borough-council/sutton,London Borough of Sutton,10/07/2023,10012742,8.26, AMZNMKTPLACE AMAZON.CO,"SPLIT - DOUBLE A, A4 REAM PAPER, A4 80 GSM, 1 REAM, 500 SHEETS, WHITE (100%)",People's Services,LAC - Education,A44280,
http://opendatacommunities.org/id/london-borough-council/sutton,London Borough of Sutton,10/07/2023,10012742,14.16, AMZNMKTPLACE AMAZON.CO,"SPLIT - OMOTON BLUETOOTH WIRELESS KEYBOARD FOR IOS COMPATIBLE WITH NEW IPAD 10.2/10.9-INCH IPAD AIR 4/3, IPAD PRO 12.9/11, IPAD AIR/PRO/MINI, IPHONE AND MORE, (100%)",People's Services,LAC - Education,A44280,
http://opendatacommunities.org/id/london-borough-council/sutton,London Borough of Sutton,21/07/2023,10012742,111.67, PREMIER INN,HOTEL BOOKING FOR ACCOMMODATION FOR NAVSH TRAINING FOR KL,People's Services,LAC - Education,A44280,
http://opendatacommunities.org/id/london-borough-council/sutton,London Borough of Sutton,21/07/2023,10012742,10.00, AMAZON.CO.UK 9M98P12A5,SPLIT - AMAZON.CO.UK GIFT CARD FOR ANY AMOUNT IN A BLACK AND SILVER MINI ENVELOPE (100%),People's Services,LAC - Education,A44280,
http://opendatacommunities.org/id/london-borough-council/sutton,London Borough of Sutton,19/07/2023,10012742,10.00, AMAZON.CO.UK O53385P25,SPLIT - AMAZON.CO.UK GIFT CARD FOR ANY AMOUNT IN A BLACK AND SILVER MINI ENVELOPE (100%),People's Services,LAC - Education,A44280,
http://opendatacommunities.org/id/london-borough-council/sutton,London Borough of Sutton,19/07/2023,10012742,10.00, AMAZON.CO.UK CX9NV44W5,SPLIT - AMAZON.CO.UK GIFT CARD FOR ANY AMOUNT IN A BLACK AND SILVER MINI ENVELOPE (100%),People's Services,LAC - Education,A44280,
http://opendatacommunities.org/id/london-borough-council/sutton,London Borough of Sutton,18/07/2023,10012742,10.00, AMAZON.CO.UK BZ3UN4NO5,SPLIT - AMAZON.CO.UK GIFT CARD FOR ANY AMOUNT IN A BLACK AND SILVER MINI ENVELOPE (100%),People's Services,LAC - Education,A44280,
http://opendatacommunities.org/id/london-borough-council/sutton,London Borough of Sutton,18/07/2023,10012742,10.00, AMAZON.CO.UK 7K2UU6SN5,SPLIT - AMAZON.CO.UK GIFT CARD FOR ANY AMOUNT IN A BLACK AND SILVER MINI ENVELOPE (100%),People's Services,LAC - Education,A44280,
http://opendatacommunities.org/id/london-borough-council/sutton,London Borough of Sutton,18/07/2023,10012742,10.00, AMAZON.CO.UK MG0P22PP5,SPLIT - AMAZON.CO.UK GIFT CARD FOR ANY AMOUNT IN A BLACK AND SILVER MINI ENVELOPE (100%),People's Services,LAC - Education,A44280,
http://opendatacommunities.org/id/london-borough-council/sutton,London Borough of Sutton,18/07/2023,10012742,10.00, AMAZON.CO.UK VI5IZ9U35,SPLIT - AMAZON.CO.UK GIFT CARD FOR ANY AMOUNT IN A BLACK AND SILVER MINI ENVELOPE (100%),People's Services,LAC - Education,A44280,
http://opendatacommunities.org/id/london-borough-council/sutton,London Borough of Sutton,18/07/2023,10012742,10.00, AMAZON.CO.UK EE5DL4O75,SPLIT - AMAZON.CO.UK GIFT CARD FOR ANY AMOUNT IN A BLACK AND SILVER MINI ENVELOPE (100%),People's Services,LAC - Education,A44280,
http://opendatacommunities.org/id/london-borough-council/sutton,London Borough of Sutton,16/07/2023,10012742,274.99, AMZNMKTPLACE,"SPLIT - LENOVO IDEAPAD 3 15 INCH FULL HD LAPTOP - (INTEL CORE I3-1115G4, INTEGRATED INTEL UHD GRAPHICS, 4GB RAM, 128GB SSD, WINDOWS 11 HOME IN S MODE) - ABYSS (100%)",People's Services,LAC - Education,A44280,
http://opendatacommunities.org/id/london-borough-council/sutton,London Borough of Sutton,16/07/2023,10012742,6.99, AMZNMKTPLACE,SPLIT - SHADOW JUMPER: A MYSTERY ADVENTURE BOOK FOR CHILDREN AND TEENS AGED 10-14 (A SHADOW JUMPER MYSTERY ADVENTURE) (31.19%),People's Services,LAC - Education,A44280,
http://opendatacommunities.org/id/london-borough-council/sutton,London Borough of Sutton,16/07/2023,10012742,8.99, AMZNMKTPLACE,SPLIT - BASKETBALL LEGENDS: 20 INSPIRING BIOGRAPHIES FOR KIDS - THE GREATEST BASKETBALL PLAYERS EVER (40.12%),People's Services,LAC - Education,A44280,
http://opendatacommunities.org/id/london-borough-council/sutton,London Borough of Sutton,16/07/2023,10012742,7.60, AMZNMKTPLACE,SPLIT - LEBRON JAMES: THE CHILDREN'S BOOK: THE BOY WHO BECAME KING (33.91%),People's Services,LAC - Education,A44280,
http://opendatacommunities.org/id/london-borough-council/sutton,London Borough of Sutton,16/07/2023,10012742,-1.17, AMZNMKTPLACE,BALANCING ENTRY AMOUNT (-15.66%),People's Services,LAC - Education,A44280,
http://opendatacommunities.org/id/london-borough-council/sutton,London Borough of Sutton,13/07/2023,10012742,-0.17, AMZNMKTPLACE,BALANCING ENTRY AMOUNT (-13.29%),People's Services,LAC - Education,A44280,
http://opendatacommunities.org/id/london-borough-council/sutton,London Borough of Sutton,13/07/2023,10012742,10.00, AMAZON.CO.UK YO21G0X95,SPLIT - AMAZON.CO.UK GIFT CARD FOR ANY AMOUNT IN A BLACK AND SILVER MINI ENVELOPE (100%),People's Services,LAC - Education,A44280,
http://opendatacommunities.org/id/london-borough-council/sutton,London Borough of Sutton,13/07/2023,10012742,8.59, AMZNMKTPLACE AMAZON.CO,"SPLIT - LARGE PENCIL CASE FOR BOYS AND GIRLS, TOYESS LIGHTWEIGHT TRIPLE POCKETS PENCIL CASES WITH BIG COMPARTMENTS FOR SCHOOL STATIONARY, CAMOUFLAGE BLACK (28.9%)",People's Services,LAC - Education,A44280,
http://opendatacommunities.org/id/london-borough-council/sutton,London Borough of Sutton,13/07/2023,10012742,21.56, AMZNMKTPLACE AMAZON.CO,"SPLIT - NIKE BRASILIA - 9.0 GYM SACK - BLACK/BLACK/WHITE, ONE SIZE (72.54%)",People's Services,LAC - Education,A44280,
http://opendatacommunities.org/id/london-borough-council/sutton,London Borough of Sutton,13/07/2023,10012742,-0.43, AMZNMKTPLACE AMAZON.CO,BALANCING ENTRY AMOUNT (-4.34%),People's Services,LAC - Education,A44280,
http://opendatacommunities.org/id/london-borough-council/sutton,London Borough of Sutton,12/07/2023,10012742,10.00, AMAZON.CO.UK GP17Y1KT5,SPLIT - AMAZON.CO.UK GIFT CARD FOR ANY AMOUNT IN A BLACK AND SILVER MINI ENVELOPE (100%),People's Services,LAC - Education,A44280,
http://opendatacommunities.org/id/london-borough-council/sutton,London Borough of Sutton,16/07/2023,10012742,16.62, AMZNMKTPLACE,"SPLIT - WILSON BASKETBALL, NBA DRV PLUS MODEL, OUTDOOR, RUBBER, SIZE: 6, BROWN (100%)",People's Services,LAC - Education,A44280,
http://opendatacommunities.org/id/london-borough-council/sutton,London Borough of Sutton,15/07/2023,10012742,11.62, AMZNMKTPLACE,"SPLIT - NIKE 2020 WATER BOTTLE HYPERFUEL SQUEEZE 18OZ-ANTHRA/WHITE, PLASTIC (100%)",People's Services,LAC - Education,A44280,
http://opendatacommunities.org/id/london-borough-council/sutton,London Borough of Sutton,14/07/2023,10012742,10.00, AMAZON.CO.UK MH3Y09X45,SPLIT - AMAZON.CO.UK GIFT CARD FOR ANY AMOUNT IN A BLACK AND SILVER MINI ENVELOPE (100%),People's Services,LAC - Education,A44280,
http://opendatacommunities.org/id/london-borough-council/sutton,London Borough of Sutton,14/07/2023,10012742,7.49, AMZNMKTPLACE,"SPLIT - HELIX RC2072 OXFORD SCIENTIFIC CALCULATOR,BLACK,22 X 14 X 2.2 CM (100%)",People's Services,LAC - Education,A44280,
http://opendatacommunities.org/id/london-borough-council/sutton,London Borough of Sutton,14/07/2023,10012742,1.99, AMZNMKTPLACE AMAZON.CO,"SPLIT - 12 HB PENCILS FOR CHILDREN | PENCILS FOR SCHOOL | KIDS WRITING PENCILS | HEXAGONAL | WOOD CASED | EVERYDAY OFFICE USE (BLACK LEAD, 12) (105.29%)",People's Services,LAC - Education,A44280,
http://opendatacommunities.org/id/london-borough-council/sutton,London Borough of Sutton,14/07/2023,10012742,-0.10, AMZNMKTPLACE AMAZON.CO,BALANCING ENTRY AMOUNT (-15.87%),People's Services,LAC - Education,A44280,
http://opendatacommunities.org/id/london-borough-council/sutton,London Borough of Sutton,14/07/2023,10012742,3.40, AMZNMKTPLACE AMAZON.CO,"SPLIT - THE BREAKFAST CLUB ADVENTURES: THE BEAST BEYOND THE FENCE (THE BREAKFAST CLUB ADVENTURES, 1) (100%)",People's Services,LAC - Education,A44280,
